Workbook

Sheet Driver Range (hidden)
B2: Name | C2: Output Current (mA) | D2: Output Voltage (Vdc) | E2: Output Power (W) | F2: Notes | G2: AiDimming Model: | K2: Model | L2: Qty of fittings on single circuit with no driver capable | M2: Current | N2: Power W | O2: Power V | Y2: Driver Model | Z2: Current | AA2: Power w | AB2: Power V
B3: Powerbank.250 | C3: 250 | D3: 25 - 42 | E3: 6.25 - 10.5 | G3: (PE294R4225 DC25-42V 250MA) | K3: Pro40 | L3: 14,24> | M3: 700mA | N3: 2.1 | O3: 3 | Y3: ? | Z3: 700mA | AA3: 4 | AB3: 6
B4: Powerbank.250DALI | C4: 200/250/300/350 | D4: 9 - 42 | E4: 1.8 - 14.7 | G4: (PE14DA42 9-42V 200/250/300/350mA) | K4: Spot.S | L4: 14,24> | M4: 700mA | N4: 2.1 | O4: 3 | Y4: ? | Z4: 700mA | AA4: 18 | AB4: 18
B5: Powerbank350.S | C5: 350 | D5: 2.5 - 6 | E5: 2 - 4.2 | G5: (PE280B0635 2.5-6V 350mA) | K5: Beam.M | L5: 14,24> | M5: 700mA | N5: 2.1 | O5: 3 | Y5: ? | Z5: 700mA | AA5: 21 | AB5: 21
K6: Mark | L6: 14,24> | M6: 700mA | N6: 2.1 | O6: 3 | Y6: ? | Z6: 700mA | AA6: 24 | AB6: 24
B7: Powerbank350.M | C7: 350 | D7: 12 - 24 | E7: 4.2 - 8.4 | G7: (PE294R2435 DC12-24V 350MA) | K7: Pin | L7: 14,24> | M7: 700mA | N7: 2.1 | O7: 3 | Y7: ? | Z7: 700mA | AA7: 30 | AB7: 30
B8: Powerbank350.L | C8: 350 | D8: 25 - 42 | E8: 8.75 - 14.7 | G8: (PE296R4235 DC25-42V 350MA) | K8: Blade | L8: 14,24> | M8: 700mA | N8: 2.1 | O8: 3 | Y8: ? | Z8: 700mA | AA8: 32 | AB8: 36
B9: Powerbank350.XL | C9: 350 | D9: 43 - 70 | E9: 15 - 25 | G9: (PE292B7035 43-70V 350mA) | K9: Tilt.M | L9: 14,24> | M9: 700mA | N9: 2.1 | O9: 3 | Y9: ? | Z9: 700mA | AA9: 33 | AB9: 33
D10: Nothing below 6V / 4.2W (I.e. 1 x Spot S) | K10: Spot.M | L10: 7> | M10: 700mA | N10: 6.3 | O10: 9 | Y10: ? | Z10: 700mA | AA10: 36 | AB10: 36
B11: Powerbank700.S | C11: 700 | D11: 6 - 15 | E11: 4.2 - 10.5 | G11: (PE294R1570 DC6-15V 700MA) | K11: Spot.Z | L11: 7> | M11: 700mA | N11: 6.3 | O11: 9 | Y11: ? | Z11: 700mA | AA11: 39 | AB11: 39
B12: Powerbank700.M | C12: 700 | D12: 12 - 24 | E12: 8.5 - 16.8 | G12: (PE296R2470 DC12-24V 700mA) | K12: Tilt.L | L12: 8> | M12: 700mA | N12: 6.3 | O12: 9 | Y12: ? | Z12: 700mA | AA12: 42 | AB12: 42
F13: 7 x Spot.S = 21V / 21W ?? | K13: Beam.Z | L13: 8> | M13: 700mA | N13: 6.3 | O13: 9 | Y13: ? | Z13: 700mA | AA13: 56 | AB13: 63
B14: Powerbank700.L | C14: 700 | D14: 25 - 42 | E14: 17.5 - 29.2 | G14: (PE292B4270 DC25-42V 700mA) | K14: Hide | L14: 24> | M14: 350mA | N14: 1.05 | O14: 3 | Y14: ? | Z14: 700mA | AA14: 64 | AB14: 72
B15: Powerbank700.XL | C15: 700 | D15: 43 - 70 | E15: 30 - 49 | G15: (PE298B7070 DC25-42V 700mA) | K15: Beam.S | L15: 24> | M15: 350mA | N15: 1.05 | O15: 3 | Y15: ? | Z15: 700mA | AA15: 72 | AB15: 81
B16: PowerHub.36 | C16: 1500 | D16: 24 | E16: 36 | G16: (PE-BL36TV24 DC24V 1.5A) | K16: Beam.S.Q | L16: 24> | M16: 350mA | N16: 1.05 | O16: 3 | Y16: ? | Z16: 350mA | AA16: 2.8 | AB16: 6
B17: PowerHub.80 | C17: 3300 | D17: 24 | E17: 80 | G17: (PE-BL80TV24 DC24V 3.33A) | K17: Moon | L17: 4> | M17: 350mA | N17: 6.3 | O17: 18 | Y17: ? | Z17: 350mA | AA17: 3 | AB17: 9
B18: PowerHub.150 | C18: 6250 | D18: 24 | E18: 150 | G18: (PE-BL150TV24 DC24V 6.25A) | K18: Beam.L | L18: 4> | M18: 350mA | N18: 6.3 | O18: 18 | Y18: ? | Z18: 350mA | AA18: 4.2 | AB18: 9
D19: Nothing above 150w (i.e. RGBW 10m = 192w) | Y19: ? | Z19: 350mA | AA19: 15.4 | AB19: 33
Y20: ? | Z20: 350mA | AA20: 16.8 | AB20: 36
Y21: ? | Z21: 350mA | AA21: 18.2 | AB21: 39
Y22: ? | Z22: 350mA | AA22: 19.6 | AB22: 42
Y23: ? | Z23: 350mA | AA23: 25.2 | AB23: 54

Sheet Which Driver
H1: Enter the number of fittings required in the row below. It assumes only one type of fitting will be used per driver on a circuit * *One can only combine different fittings if they require the same ampere or voltage. For further information please email sales@lightingoflondon.co for further help and advice
A2: Quantity in circuit: | B2: --> | C2: 0 | D2: --> | E2: --> | F2: --> | G2: --> | H2: 1 | J2: 8 | L2: 8 | N2: 20 | P2: 3 | R2: 7 | T2: 8 | V2: 2 | X2: 0 | Z2: 0 | AB2: 10 | AD2: 8 | AF2: 10 | AH2: 3 | AJ2: 2 | AL2: 0 | AN2: 1 | AP2: 2 | AR2: 7 | AT2: 1 | AV2: 0 | AX2: 1 | AZ2: 2 | BB2: 6 | BD2: 1 | BF2: 3 | BH2: 3 | BJ2: 20 | BL2: 1 | BN2: 0 | BP2: 1 | BQ2: 10 | BR2: 5
A4: DRIVER Max: | H4: 1 | J4: 23 | L4: 23 | N4: 20 | P4: 3 | R4: 7 | T4: 23 | V4: 3 | X4: - | Z4: - | AB4: 23 | AD4: 10 | AF4: 23 | AH4: 3 | AJ4: 16 | AL4: - | AN4: 1 | AP4: 23 | AR4: 23 | AT4: 1 | AV4: - | AX4: 1 | AZ4: 23 | BB4: 7 | BD4: 7 | BF4: 3 | BH4: 3 | BJ4: 20 | BL4: 7 | BN4: - | BP4: Linear .240 | BQ4: Linear .350 | BR4: Linear .RGBW
A5: FITTING | H5: Aim70 | J5: BeamS | L5: BeamS.Q | N5: BeamM | P5: BeamL | R5: BeamZ | T5: Blade | V5: Bloc.P/R | X5: Bloc.S | Z5: Follow. Me.P/R/S | AB5: Hide | AD5: Lunar | AF5: Mark | AH5: Moon | AJ5: Niche L/M/S | AL5: Orb.M/S | AN5: Peep | AP5: Pin | AR5: Pro40 | AT5: Pro60 | AV5: Seek | AX5: Snug | AZ5: SpotS | BB5: SpotM | BD5: SpotZ | BF5: Sqube.S | BH5: Sqube.M | BJ5: TiltM | BL5: TiltL | BN5: Uno
A6: hide Current mA | B6: Output Current Min | C6: Output Current Max | D6: Output Voltage Min | E6: Output Voltage Max | F6: Output Power Min | G6: Output Power Max | H6: 250 | J6: 350 | L6: 350 | N6: 700 | P6: 350 | R6: 700 | T6: 700 | V6: 500 | AB6: 350 | AD6: 500 | AF6: 700 | AH6: 350 | AJ6: 700 | AN6: 250 | AP6: 700 | AR6: 700 | AT6: 250 | AX6: 250 | AZ6: 700 | BB6: 700 | BD6: 700 | BF6: 350 | BH6: 500 | BJ6: 700 | BL6: 700 | BN6: 700 | BP6: - | BQ6: - | BR6: -
A7: hide Voltage Vdc | H7: 36 | I7: 36 | J7: 3 | K7: 3 | L7: 3 | M7: 3 | N7: 3.4 | O7: 3.4 | P7: 19 | Q7: 19 | R7: 9.7 | S7: 9.7 | T7: 3 | U7: 3 | V7: 11.7 | W7: 11.7 | AB7: 3 | AC7: 3 | AD7: 3 | AE7: 3 | AF7: 3 | AG7: 3 | AH7: 18 | AI7: 18 | AJ7: 3 | AK7: 3 | AN7: 36 | AO7: 36 | AP7: 3 | AQ7: 3 | AR7: 3 | AS7: 3 | AT7: 35 | AU7: 35 | AX7: 36 | AY7: 36 | AZ7: 3 | BA7: 3 | BB7: 9.7 | BC7: 9.7 | BD7: 9 | BE7: 9 | BF7: 17.1 | BG7: 17.1 | BH7: 17.9 | BI7: 17.9 | BJ7: 3.4 | BK7: 3.4 | BL7: 9.6 | BM7: 9.6 | BN7: 3 | BO7: 3 | BP7: 24 | BQ7: 24 | BR7: 24
A8: hide Power W | H8: 9 | J8: 1.05 | L8: 1.05 | N8: 2.3 | P8: 6.6 | R8: 6.7 | T8: 2.1 | V8: 5.8 | AB8: 1.05 | AD8: 2 | AF8: 2.1 | AH8: 6.3 | AJ8: 3 | AN8: 10 | AP8: 2.1 | AR8: 2.1 | AT8: 8.75 | AX8: 10 | AZ8: 2.1 | BB8: 6.8 | BD8: 6.3 | BF8: 5.9 | BH8: 8.9 | BJ8: 2.3 | BL8: 6.7 | BN8: 2.1 | BP8: =9.6 -> 9.6 | BQ8: =13 -> 13 | BR8: =19.2 -> 19.2
A9: Constant CURRENT
A10: Powerbank.100-180.DALI | B10: DIFFERENT FORMULA ---> | H10: =IF(H11<>"",H11,IF(H12<>"",H12,IF(H13<>"",H13,H14))) ->  | J10: =IF(J11<>"",J11,IF(J12<>"",J12,IF(J13<>"",J13,J14))) ->  | L10: =IF(L11<>"",L11,IF(L12<>"",L12,IF(L13<>"",L13,L14))) ->  | N10: =IF(N11<>"",N11,IF(N12<>"",N12,IF(N13<>"",N13,N14))) ->  | P10: =IF(P11<>"",P11,IF(P12<>"",P12,IF(P13<>"",P13,P14))) ->  | R10: =IF(R11<>"",R11,IF(R12<>"",R12,IF(R13<>"",R13,R14))) ->  | T10: =IF(T11<>"",T11,IF(T12<>"",T12,IF(T13<>"",T13,T14))) ->  | V10: =IF(V11<>"",V11,IF(V12<>"",V12,IF(V13<>"",V13,V14))) ->  | X10: NO NEED TO PURCHASE A SEPARATE DRIVER. DRIVER INTE-GRATED INTO EACH FITTING. | Z10: NO NEED TO PURCHASE A SEPARATE DRIVER. DRIVER INTE-GRATED INTO EACH FITTING. | AB10: =IF(AB11<>"",AB11,IF(AB12<>"",AB12,IF(AB13<>"",AB13,AB14))) ->  | AD10: =IF(AD11<>"",AD11,IF(AD12<>"",AD12,IF(AD13<>"",AD13,AD14))) ->  | AF10: =IF(AF11<>"",AF11,IF(AF12<>"",AF12,IF(AF13<>"",AF13,AF14))) ->  | AH10: =IF(AH11<>"",AH11,IF(AH12<>"",AH12,IF(AH13<>"",AH13,AH14))) ->  | AJ10: =IF(AJ11<>"",AJ11,IF(AJ12<>"",AJ12,IF(AJ13<>"",AJ13,AJ14))) ->  | AL10: NO NEED TO PURCHASE A SEPARATE DRIVER. DRIVER INTE-GRATED INTO EACH FITTING. | AN10: =IF(AN11<>"",AN11,IF(AN12<>"",AN12,IF(AN13<>"",AN13,AN14))) ->  | AP10: =IF(AP11<>"",AP11,IF(AP12<>"",AP12,IF(AP13<>"",AP13,AP14))) ->  | AR10: =IF(AR11<>"",AR11,IF(AR12<>"",AR12,IF(AR13<>"",AR13,AR14))) ->  | AT10: =IF(AT11<>"",AT11,IF(AT12<>"",AT12,IF(AT13<>"",AT13,AT14))) ->  | AV10: NO NEED TO PURCHASE A SEPARATE DRIVER. DRIVER INTE-GRATED INTO EACH FITTING. | AX10: =IF(AX11<>"",AX11,IF(AX12<>"",AX12,IF(AX13<>"",AX13,AX14))) ->  | AZ10: =IF(AZ11<>"",AZ11,IF(AZ12<>"",AZ12,IF(AZ13<>"",AZ13,AZ14))) ->  | BB10: =IF(BB11<>"",BB11,IF(BB12<>"",BB12,IF(BB13<>"",BB13,BB14))) ->  | BD10: =IF(BD11<>"",BD11,IF(BD12<>"",BD12,IF(BD13<>"",BD13,BD14))) ->  | BF10: =IF(BF11<>"",BF11,IF(BF12<>"",BF12,IF(BF13<>"",BF13,BF14))) ->  | BH10: =IF(BH11<>"",BH11,IF(BH12<>"",BH12,IF(BH13<>"",BH13,BH14))) ->  | BJ10: =IF(BJ11<>"",BJ11,IF(BJ12<>"",BJ12,IF(BJ13<>"",BJ13,BJ14))) ->  | BL10: =IF(BL11<>"",BL11,IF(BL12<>"",BL12,IF(BL13<>"",BL13,BL14))) ->  | BN10: NO NEED TO PURCHASE A SEPARATE DRIVER. DRIVER INTE-GRATED INTO EACH FITTING. | BP10: N/A | BQ10: N/A | BR10: N/A
A11: hide | B11: 100 | C11: =B11 -> 100 | D11: 25 | E11: 40 | F11: =(B11/1000)*D11 -> 2.5 | G11: =(C11/1000)*E11 -> 4 | H11: =IF(H$2="","",IF(OR(H$6<$B11,H$6>$C11),"",IF(AND(OR(H$2*H$7>=$D11,H$2*I$7>=$D11),OR(H$2*H$7<=$E11,H$2*I$7<=$E11),H$2*H$8>=$F11,H$2*H$8<=$G11),"ü",""))) ->  | J11: =IF(J$2="","",IF(OR(J$6<$B11,J$6>$C11),"",IF(AND(OR(J$2*J$7>=$D11,J$2*K$7>=$D11),OR(J$2*J$7<=$E11,J$2*K$7<=$E11),J$2*J$8>=$F11,J$2*J$8<=$G11),"ü",""))) ->  | L11: =IF(L$2="","",IF(OR(L$6<$B11,L$6>$C11),"",IF(AND(OR(L$2*L$7>=$D11,L$2*M$7>=$D11),OR(L$2*L$7<=$E11,L$2*M$7<=$E11),L$2*L$8>=$F11,L$2*L$8<=$G11),"ü",""))) ->  | N11: =IF(N$2="","",IF(OR(N$6<$B11,N$6>$C11),"",IF(AND(OR(N$2*N$7>=$D11,N$2*O$7>=$D11),OR(N$2*N$7<=$E11,N$2*O$7<=$E11),N$2*N$8>=$F11,N$2*N$8<=$G11),"ü",""))) ->  | P11: =IF(P$2="","",IF(OR(P$6<$B11,P$6>$C11),"",IF(AND(OR(P$2*P$7>=$D11,P$2*Q$7>=$D11),OR(P$2*P$7<=$E11,P$2*Q$7<=$E11),P$2*P$8>=$F11,P$2*P$8<=$G11),"ü",""))) ->  | R11: =IF(R$2="","",IF(OR(R$6<$B11,R$6>$C11),"",IF(AND(OR(R$2*R$7>=$D11,R$2*S$7>=$D11),OR(R$2*R$7<=$E11,R$2*S$7<=$E11),R$2*R$8>=$F11,R$2*R$8<=$G11),"ü",""))) ->  | T11: =IF(T$2="","",IF(OR(T$6<$B11,T$6>$C11),"",IF(AND(OR(T$2*T$7>=$D11,T$2*U$7>=$D11),OR(T$2*T$7<=$E11,T$2*U$7<=$E11),T$2*T$8>=$F11,T$2*T$8<=$G11),"ü",""))) ->  | V11: =IF(V$2="","",IF(OR(V$6<$B11,V$6>$C11),"",IF(AND(OR(V$2*V$7>=$D11,V$2*W$7>=$D11),OR(V$2*V$7<=$E11,V$2*W$7<=$E11),V$2*V$8>=$F11,V$2*V$8<=$G11),"ü",""))) ->  | AB11: =IF(AB$2="","",IF(OR(AB$6<$B11,AB$6>$C11),"",IF(AND(OR(AB$2*AB$7>=$D11,AB$2*AC$7>=$D11),OR(AB$2*AB$7<=$E11,AB$2*AC$7<=$E11),AB$2*AB$8>=$F11,AB$2*AB$8<=$G11),"ü",""))) ->  | AD11: =IF(AD$2="","",IF(OR(AD$6<$B11,AD$6>$C11),"",IF(AND(OR(AD$2*AD$7>=$D11,AD$2*AE$7>=$D11),OR(AD$2*AD$7<=$E11,AD$2*AE$7<=$E11),AD$2*AD$8>=$F11,AD$2*AD$8<=$G11),"ü",""))) ->  | AF11: =IF(AF$2="","",IF(OR(AF$6<$B11,AF$6>$C11),"",IF(AND(OR(AF$2*AF$7>=$D11,AF$2*AG$7>=$D11),OR(AF$2*AF$7<=$E11,AF$2*AG$7<=$E11),AF$2*AF$8>=$F11,AF$2*AF$8<=$G11),"ü",""))) ->  | AH11: =IF(AH$2="","",IF(OR(AH$6<$B11,AH$6>$C11),"",IF(AND(OR(AH$2*AH$7>=$D11,AH$2*AI$7>=$D11),OR(AH$2*AH$7<=$E11,AH$2*AI$7<=$E11),AH$2*AH$8>=$F11,AH$2*AH$8<=$G11),"ü",""))) ->  | AJ11: =IF(AJ$2="","",IF(OR(AJ$6<$B11,AJ$6>$C11),"",IF(AND(OR(AJ$2*AJ$7>=$D11,AJ$2*AK$7>=$D11),OR(AJ$2*AJ$7<=$E11,AJ$2*AK$7<=$E11),AJ$2*AJ$8>=$F11,AJ$2*AJ$8<=$G11),"ü",""))) ->  | AN11: =IF(AN$2="","",IF(OR(AN$6<$B11,AN$6>$C11),"",IF(AND(OR(AN$2*AN$7>=$D11,AN$2*AO$7>=$D11),OR(AN$2*AN$7<=$E11,AN$2*AO$7<=$E11),AN$2*AN$8>=$F11,AN$2*AN$8<=$G11),"ü",""))) ->  | AP11: =IF(AP$2="","",IF(OR(AP$6<$B11,AP$6>$C11),"",IF(AND(OR(AP$2*AP$7>=$D11,AP$2*AQ$7>=$D11),OR(AP$2*AP$7<=$E11,AP$2*AQ$7<=$E11),AP$2*AP$8>=$F11,AP$2*AP$8<=$G11),"ü",""))) ->  | AR11: =IF(AR$2="","",IF(OR(AR$6<$B11,AR$6>$C11),"",IF(AND(OR(AR$2*AR$7>=$D11,AR$2*AS$7>=$D11),OR(AR$2*AR$7<=$E11,AR$2*AS$7<=$E11),AR$2*AR$8>=$F11,AR$2*AR$8<=$G11),"ü",""))) ->  | AT11: =IF(AT$2="","",IF(OR(AT$6<$B11,AT$6>$C11),"",IF(AND(OR(AT$2*AT$7>=$D11,AT$2*AU$7>=$D11),OR(AT$2*AT$7<=$E11,AT$2*AU$7<=$E11),AT$2*AT$8>=$F11,AT$2*AT$8<=$G11),"ü",""))) ->  | AX11: =IF(AX$2="","",IF(OR(AX$6<$B11,AX$6>$C11),"",IF(AND(OR(AX$2*AX$7>=$D11,AX$2*AY$7>=$D11),OR(AX$2*AX$7<=$E11,AX$2*AY$7<=$E11),AX$2*AX$8>=$F11,AX$2*AX$8<=$G11),"ü",""))) ->  | AZ11: =IF(AZ$2="","",IF(OR(AZ$6<$B11,AZ$6>$C11),"",IF(AND(OR(AZ$2*AZ$7>=$D11,AZ$2*BA$7>=$D11),OR(AZ$2*AZ$7<=$E11,AZ$2*BA$7<=$E11),AZ$2*AZ$8>=$F11,AZ$2*AZ$8<=$G11),"ü",""))) ->  | BB11: =IF(BB$2="","",IF(OR(BB$6<$B11,BB$6>$C11),"",IF(AND(OR(BB$2*BB$7>=$D11,BB$2*BC$7>=$D11),OR(BB$2*BB$7<=$E11,BB$2*BC$7<=$E11),BB$2*BB$8>=$F11,BB$2*BB$8<=$G11),"ü",""))) ->  | BD11: =IF(BD$2="","",IF(OR(BD$6<$B11,BD$6>$C11),"",IF(AND(OR(BD$2*BD$7>=$D11,BD$2*BE$7>=$D11),OR(BD$2*BD$7<=$E11,BD$2*BE$7<=$E11),BD$2*BD$8>=$F11,BD$2*BD$8<=$G11),"ü",""))) ->  | BF11: =IF(BF$2="","",IF(OR(BF$6<$B11,BF$6>$C11),"",IF(AND(OR(BF$2*BF$7>=$D11,BF$2*BG$7>=$D11),OR(BF$2*BF$7<=$E11,BF$2*BG$7<=$E11),BF$2*BF$8>=$F11,BF$2*BF$8<=$G11),"ü",""))) ->  | BH11: =IF(BH$2="","",IF(OR(BH$6<$B11,BH$6>$C11),"",IF(AND(OR(BH$2*BH$7>=$D11,BH$2*BI$7>=$D11),OR(BH$2*BH$7<=$E11,BH$2*BI$7<=$E11),BH$2*BH$8>=$F11,BH$2*BH$8<=$G11),"ü",""))) ->  | BJ11: =IF(BJ$2="","",IF(OR(BJ$6<$B11,BJ$6>$C11),"",IF(AND(OR(BJ$2*BJ$7>=$D11,BJ$2*BK$7>=$D11),OR(BJ$2*BJ$7<=$E11,BJ$2*BK$7<=$E11),BJ$2*BJ$8>=$F11,BJ$2*BJ$8<=$G11),"ü",""))) ->  | BL11: =IF(BL$2="","",IF(OR(BL$6<$B11,BL$6>$C11),"",IF(AND(OR(BL$2*BL$7>=$D11,BL$2*BM$7>=$D11),OR(BL$2*BL$7<=$E11,BL$2*BM$7<=$E11),BL$2*BL$8>=$F11,BL$2*BL$8<=$G11),"ü",""))) ->  | BP11: N/A | BQ11: N/A | BR11: N/A
A12: hide | B12: 130 | C12: =B12 -> 130 | D12: 25 | E12: 40 | F12: =(B12/1000)*D12 -> 3.25 | G12: =(C12/1000)*E12 -> 5.2 | BP12: N/A | BQ12: N/A | BR12: N/A
A13: hide | B13: 150 | C13: 150 | D13: 25 | E13: 40 | F13: 3.75 | G13: 6 | BP13: N/A | BQ13: N/A | BR13: N/A
A14: hide | B14: 180 | C14: 180 | D14: 25 | E14: 40 | F14: 4.5 | G14: 7.2 | BP14: N/A | BQ14: N/A | BR14: N/A
A15: Powerbank150-250.TRIAC | B15: DIFFERENT FORMULA ---> | H15: =IF(H16<>"",H16,IF(H17<>"",H17,IF(H18<>"",H18,H19))) -> ü | J15: =IF(J16<>"",J16,IF(J17<>"",J17,IF(J18<>"",J18,J19))) ->  | L15: =IF(L16<>"",L16,IF(L17<>"",L17,IF(L18<>"",L18,L19))) ->  | N15: =IF(N16<>"",N16,IF(N17<>"",N17,IF(N18<>"",N18,N19))) ->  | P15: =IF(P16<>"",P16,IF(P17<>"",P17,IF(P18<>"",P18,P19))) ->  | R15: =IF(R16<>"",R16,IF(R17<>"",R17,IF(R18<>"",R18,R19))) ->  | T15: =IF(T16<>"",T16,IF(T17<>"",T17,IF(T18<>"",T18,T19))) ->  | V15: =IF(V16<>"",V16,IF(V17<>"",V17,IF(V18<>"",V18,V19))) ->  | AB15: =IF(AB16<>"",AB16,IF(AB17<>"",AB17,IF(AB18<>"",AB18,AB19))) ->  | AD15: =IF(AD16<>"",AD16,IF(AD17<>"",AD17,IF(AD18<>"",AD18,AD19))) ->  | AF15: =IF(AF16<>"",AF16,IF(AF17<>"",AF17,IF(AF18<>"",AF18,AF19))) ->  | AH15: =IF(AH16<>"",AH16,IF(AH17<>"",AH17,IF(AH18<>"",AH18,AH19))) ->  | AJ15: =IF(AJ16<>"",AJ16,IF(AJ17<>"",AJ17,IF(AJ18<>"",AJ18,AJ19))) ->  | AN15: =IF(AN16<>"",AN16,IF(AN17<>"",AN17,IF(AN18<>"",AN18,AN19))) -> ü | AP15: =IF(AP16<>"",AP16,IF(AP17<>"",AP17,IF(AP18<>"",AP18,AP19))) ->  | AR15: =IF(AR16<>"",AR16,IF(AR17<>"",AR17,IF(AR18<>"",AR18,AR19))) ->  | AT15: =IF(AT16<>"",AT16,IF(AT17<>"",AT17,IF(AT18<>"",AT18,AT19))) -> ü | AX15: =IF(AX16<>"",AX16,IF(AX17<>"",AX17,IF(AX18<>"",AX18,AX19))) -> ü | AZ15: =IF(AZ16<>"",AZ16,IF(AZ17<>"",AZ17,IF(AZ18<>"",AZ18,AZ19))) ->  | BB15: =IF(BB16<>"",BB16,IF(BB17<>"",BB17,IF(BB18<>"",BB18,BB19))) ->  | BD15: =IF(BD16<>"",BD16,IF(BD17<>"",BD17,IF(BD18<>"",BD18,BD19))) ->  | BF15: =IF(BF16<>"",BF16,IF(BF17<>"",BF17,IF(BF18<>"",BF18,BF19))) ->  | BH15: =IF(BH16<>"",BH16,IF(BH17<>"",BH17,IF(BH18<>"",BH18,BH19))) ->  | BJ15: =IF(BJ16<>"",BJ16,IF(BJ17<>"",BJ17,IF(BJ18<>"",BJ18,BJ19))) ->  | BL15: =IF(BL16<>"",BL16,IF(BL17<>"",BL17,IF(BL18<>"",BL18,BL19))) ->  | BP15: N/A | BQ15: N/A | BR15: N/A
A16: hide | B16: 150 | C16: =B16 -> 150 | D16: 26 | E16: 42 | F16: =(B16/1000)*D16 -> 3.9 | G16: =(C16/1000)*E16 -> 6.3 | H16: =IF(H$2="","",IF(OR(H$6<$B16,H$6>$C16),"",IF(AND(OR(H$2*H$7>=$D16,H$2*I$7>=$D16),OR(H$2*H$7<=$E16,H$2*I$7<=$E16),H$2*H$8>=$F16,H$2*H$8<=$G16),"ü",""))) ->  | J16: =IF(J$2="","",IF(OR(J$6<$B16,J$6>$C16),"",IF(AND(OR(J$2*J$7>=$D16,J$2*K$7>=$D16),OR(J$2*J$7<=$E16,J$2*K$7<=$E16),J$2*J$8>=$F16,J$2*J$8<=$G16),"ü",""))) ->  | L16: =IF(L$2="","",IF(OR(L$6<$B16,L$6>$C16),"",IF(AND(OR(L$2*L$7>=$D16,L$2*M$7>=$D16),OR(L$2*L$7<=$E16,L$2*M$7<=$E16),L$2*L$8>=$F16,L$2*L$8<=$G16),"ü",""))) ->  | N16: =IF(N$2="","",IF(OR(N$6<$B16,N$6>$C16),"",IF(AND(OR(N$2*N$7>=$D16,N$2*O$7>=$D16),OR(N$2*N$7<=$E16,N$2*O$7<=$E16),N$2*N$8>=$F16,N$2*N$8<=$G16),"ü",""))) ->  | P16: =IF(P$2="","",IF(OR(P$6<$B16,P$6>$C16),"",IF(AND(OR(P$2*P$7>=$D16,P$2*Q$7>=$D16),OR(P$2*P$7<=$E16,P$2*Q$7<=$E16),P$2*P$8>=$F16,P$2*P$8<=$G16),"ü",""))) ->  | R16: =IF(R$2="","",IF(OR(R$6<$B16,R$6>$C16),"",IF(AND(OR(R$2*R$7>=$D16,R$2*S$7>=$D16),OR(R$2*R$7<=$E16,R$2*S$7<=$E16),R$2*R$8>=$F16,R$2*R$8<=$G16),"ü",""))) ->  | T16: =IF(T$2="","",IF(OR(T$6<$B16,T$6>$C16),"",IF(AND(OR(T$2*T$7>=$D16,T$2*U$7>=$D16),OR(T$2*T$7<=$E16,T$2*U$7<=$E16),T$2*T$8>=$F16,T$2*T$8<=$G16),"ü",""))) ->  | V16: =IF(V$2="","",IF(OR(V$6<$B16,V$6>$C16),"",IF(AND(OR(V$2*V$7>=$D16,V$2*W$7>=$D16),OR(V$2*V$7<=$E16,V$2*W$7<=$E16),V$2*V$8>=$F16,V$2*V$8<=$G16),"ü",""))) ->  | AB16: =IF(AB$2="","",IF(OR(AB$6<$B16,AB$6>$C16),"",IF(AND(OR(AB$2*AB$7>=$D16,AB$2*AC$7>=$D16),OR(AB$2*AB$7<=$E16,AB$2*AC$7<=$E16),AB$2*AB$8>=$F16,AB$2*AB$8<=$G16),"ü",""))) ->  | AD16: =IF(AD$2="","",IF(OR(AD$6<$B16,AD$6>$C16),"",IF(AND(OR(AD$2*AD$7>=$D16,AD$2*AE$7>=$D16),OR(AD$2*AD$7<=$E16,AD$2*AE$7<=$E16),AD$2*AD$8>=$F16,AD$2*AD$8<=$G16),"ü",""))) ->  | AF16: =IF(AF$2="","",IF(OR(AF$6<$B16,AF$6>$C16),"",IF(AND(OR(AF$2*AF$7>=$D16,AF$2*AG$7>=$D16),OR(AF$2*AF$7<=$E16,AF$2*AG$7<=$E16),AF$2*AF$8>=$F16,AF$2*AF$8<=$G16),"ü",""))) ->  | AH16: =IF(AH$2="","",IF(OR(AH$6<$B16,AH$6>$C16),"",IF(AND(OR(AH$2*AH$7>=$D16,AH$2*AI$7>=$D16),OR(AH$2*AH$7<=$E16,AH$2*AI$7<=$E16),AH$2*AH$8>=$F16,AH$2*AH$8<=$G16),"ü",""))) ->  | AJ16: =IF(AJ$2="","",IF(OR(AJ$6<$B16,AJ$6>$C16),"",IF(AND(OR(AJ$2*AJ$7>=$D16,AJ$2*AK$7>=$D16),OR(AJ$2*AJ$7<=$E16,AJ$2*AK$7<=$E16),AJ$2*AJ$8>=$F16,AJ$2*AJ$8<=$G16),"ü",""))) ->  | AN16: =IF(AN$2="","",IF(OR(AN$6<$B16,AN$6>$C16),"",IF(AND(OR(AN$2*AN$7>=$D16,AN$2*AO$7>=$D16),OR(AN$2*AN$7<=$E16,AN$2*AO$7<=$E16),AN$2*AN$8>=$F16,AN$2*AN$8<=$G16),"ü",""))) ->  | AP16: =IF(AP$2="","",IF(OR(AP$6<$B16,AP$6>$C16),"",IF(AND(OR(AP$2*AP$7>=$D16,AP$2*AQ$7>=$D16),OR(AP$2*AP$7<=$E16,AP$2*AQ$7<=$E16),AP$2*AP$8>=$F16,AP$2*AP$8<=$G16),"ü",""))) ->  | AR16: =IF(AR$2="","",IF(OR(AR$6<$B16,AR$6>$C16),"",IF(AND(OR(AR$2*AR$7>=$D16,AR$2*AS$7>=$D16),OR(AR$2*AR$7<=$E16,AR$2*AS$7<=$E16),AR$2*AR$8>=$F16,AR$2*AR$8<=$G16),"ü",""))) ->  | AT16: =IF(AT$2="","",IF(OR(AT$6<$B16,AT$6>$C16),"",IF(AND(OR(AT$2*AT$7>=$D16,AT$2*AU$7>=$D16),OR(AT$2*AT$7<=$E16,AT$2*AU$7<=$E16),AT$2*AT$8>=$F16,AT$2*AT$8<=$G16),"ü",""))) ->  | AX16: =IF(AX$2="","",IF(OR(AX$6<$B16,AX$6>$C16),"",IF(AND(OR(AX$2*AX$7>=$D16,AX$2*AY$7>=$D16),OR(AX$2*AX$7<=$E16,AX$2*AY$7<=$E16),AX$2*AX$8>=$F16,AX$2*AX$8<=$G16),"ü",""))) ->  | AZ16: =IF(AZ$2="","",IF(OR(AZ$6<$B16,AZ$6>$C16),"",IF(AND(OR(AZ$2*AZ$7>=$D16,AZ$2*BA$7>=$D16),OR(AZ$2*AZ$7<=$E16,AZ$2*BA$7<=$E16),AZ$2*AZ$8>=$F16,AZ$2*AZ$8<=$G16),"ü",""))) ->  | BB16: =IF(BB$2="","",IF(OR(BB$6<$B16,BB$6>$C16),"",IF(AND(OR(BB$2*BB$7>=$D16,BB$2*BC$7>=$D16),OR(BB$2*BB$7<=$E16,BB$2*BC$7<=$E16),BB$2*BB$8>=$F16,BB$2*BB$8<=$G16),"ü",""))) ->  | BD16: =IF(BD$2="","",IF(OR(BD$6<$B16,BD$6>$C16),"",IF(AND(OR(BD$2*BD$7>=$D16,BD$2*BE$7>=$D16),OR(BD$2*BD$7<=$E16,BD$2*BE$7<=$E16),BD$2*BD$8>=$F16,BD$2*BD$8<=$G16),"ü",""))) ->  | BF16: =IF(BF$2="","",IF(OR(BF$6<$B16,BF$6>$C16),"",IF(AND(OR(BF$2*BF$7>=$D16,BF$2*BG$7>=$D16),OR(BF$2*BF$7<=$E16,BF$2*BG$7<=$E16),BF$2*BF$8>=$F16,BF$2*BF$8<=$G16),"ü",""))) ->  | BH16: =IF(BH$2="","",IF(OR(BH$6<$B16,BH$6>$C16),"",IF(AND(OR(BH$2*BH$7>=$D16,BH$2*BI$7>=$D16),OR(BH$2*BH$7<=$E16,BH$2*BI$7<=$E16),BH$2*BH$8>=$F16,BH$2*BH$8<=$G16),"ü",""))) ->  | BJ16: =IF(BJ$2="","",IF(OR(BJ$6<$B16,BJ$6>$C16),"",IF(AND(OR(BJ$2*BJ$7>=$D16,BJ$2*BK$7>=$D16),OR(BJ$2*BJ$7<=$E16,BJ$2*BK$7<=$E16),BJ$2*BJ$8>=$F16,BJ$2*BJ$8<=$G16),"ü",""))) ->  | BL16: =IF(BL$2="","",IF(OR(BL$6<$B16,BL$6>$C16),"",IF(AND(OR(BL$2*BL$7>=$D16,BL$2*BM$7>=$D16),OR(BL$2*BL$7<=$E16,BL$2*BM$7<=$E16),BL$2*BL$8>=$F16,BL$2*BL$8<=$G16),"ü",""))) ->  | BP16: N/A | BQ16: N/A | BR16: N/A
A17: hide | B17: 180 | C17: =B17 -> 180 | D17: 26 | E17: 42 | F17: =(B17/1000)*D17 -> 4.68 | G17: =(C17/1000)*E17 -> 7.56 | BP17: N/A | BQ17: N/A | BR17: N/A
A18: hide | B18: 220 | C18: 220 | D18: 26 | E18: 42 | F18: 5.72 | G18: 9.24 | BP18: N/A | BQ18: N/A | BR18: N/A
A19: hide | B19: 250 | C19: 250 | D19: 26 | E19: 42 | F19: 6.5 | G19: 10.5 | H19: ü | AN19: ü | AT19: ü | AX19: ü | BP19: N/A | BQ19: N/A | BR19: N/A
A20: Powerbank.250 | B20: 250 | C20: 250 | D20: 25 | E20: 42 | F20: 6.25 | G20: 10.5 | H20: =IF(H$2="","",IF(OR(H$6<$B20,H$6>$C20),"",IF(AND(OR(H$2*H$7>=$D20,H$2*I$7>=$D20),OR(H$2*H$7<=$E20,H$2*I$7<=$E20),H$2*H$8>=$F20,H$2*H$8<=$G20),"ü",""))) -> ü | L20: =IF(L$2="","",IF(OR(L$6<$B20,L$6>$C20),"",IF(AND(OR(L$2*L$7>=$D20,L$2*M$7>=$D20),OR(L$2*L$7<=$E20,L$2*M$7<=$E20),L$2*L$8>=$F20,L$2*L$8<=$G20),"ü",""))) ->  | N20: =IF(N$2="","",IF(OR(N$6<$B20,N$6>$C20),"",IF(AND(OR(N$2*N$7>=$D20,N$2*O$7>=$D20),OR(N$2*N$7<=$E20,N$2*O$7<=$E20),N$2*N$8>=$F20,N$2*N$8<=$G20),"ü",""))) ->  | P20: =IF(P$2="","",IF(OR(P$6<$B20,P$6>$C20),"",IF(AND(OR(P$2*P$7>=$D20,P$2*Q$7>=$D20),OR(P$2*P$7<=$E20,P$2*Q$7<=$E20),P$2*P$8>=$F20,P$2*P$8<=$G20),"ü",""))) ->  | R20: =IF(R$2="","",IF(OR(R$6<$B20,R$6>$C20),"",IF(AND(OR(R$2*R$7>=$D20,R$2*S$7>=$D20),OR(R$2*R$7<=$E20,R$2*S$7<=$E20),R$2*R$8>=$F20,R$2*R$8<=$G20),"ü",""))) ->  | T20: =IF(T$2="","",IF(OR(T$6<$B20,T$6>$C20),"",IF(AND(OR(T$2*T$7>=$D20,T$2*U$7>=$D20),OR(T$2*T$7<=$E20,T$2*U$7<=$E20),T$2*T$8>=$F20,T$2*T$8<=$G20),"ü",""))) ->  | V20: =IF(V$2="","",IF(OR(V$6<$B20,V$6>$C20),"",IF(AND(OR(V$2*V$7>=$D20,V$2*W$7>=$D20),OR(V$2*V$7<=$E20,V$2*W$7<=$E20),V$2*V$8>=$F20,V$2*V$8<=$G20),"ü",""))) ->  | AB20: =IF(AB$2="","",IF(OR(AB$6<$B20,AB$6>$C20),"",IF(AND(OR(AB$2*AB$7>=$D20,AB$2*AC$7>=$D20),OR(AB$2*AB$7<=$E20,AB$2*AC$7<=$E20),AB$2*AB$8>=$F20,AB$2*AB$8<=$G20),"ü",""))) ->  | AD20: =IF(AD$2="","",IF(OR(AD$6<$B20,AD$6>$C20),"",IF(AND(OR(AD$2*AD$7>=$D20,AD$2*AE$7>=$D20),OR(AD$2*AD$7<=$E20,AD$2*AE$7<=$E20),AD$2*AD$8>=$F20,AD$2*AD$8<=$G20),"ü",""))) ->  | AF20: =IF(AF$2="","",IF(OR(AF$6<$B20,AF$6>$C20),"",IF(AND(OR(AF$2*AF$7>=$D20,AF$2*AG$7>=$D20),OR(AF$2*AF$7<=$E20,AF$2*AG$7<=$E20),AF$2*AF$8>=$F20,AF$2*AF$8<=$G20),"ü",""))) ->  | AH20: =IF(AH$2="","",IF(OR(AH$6<$B20,AH$6>$C20),"",IF(AND(OR(AH$2*AH$7>=$D20,AH$2*AI$7>=$D20),OR(AH$2*AH$7<=$E20,AH$2*AI$7<=$E20),AH$2*AH$8>=$F20,AH$2*AH$8<=$G20),"ü",""))) ->  | AJ20: =IF(AJ$2="","",IF(OR(AJ$6<$B20,AJ$6>$C20),"",IF(AND(OR(AJ$2*AJ$7>=$D20,AJ$2*AK$7>=$D20),OR(AJ$2*AJ$7<=$E20,AJ$2*AK$7<=$E20),AJ$2*AJ$8>=$F20,AJ$2*AJ$8<=$G20),"ü",""))) ->  | AN20: =IF(AN$2="","",IF(OR(AN$6<$B20,AN$6>$C20),"",IF(AND(OR(AN$2*AN$7>=$D20,AN$2*AO$7>=$D20),OR(AN$2*AN$7<=$E20,AN$2*AO$7<=$E20),AN$2*AN$8>=$F20,AN$2*AN$8<=$G20),"ü",""))) -> ü | AP20: =IF(AP$2="","",IF(OR(AP$6<$B20,AP$6>$C20),"",IF(AND(OR(AP$2*AP$7>=$D20,AP$2*AQ$7>=$D20),OR(AP$2*AP$7<=$E20,AP$2*AQ$7<=$E20),AP$2*AP$8>=$F20,AP$2*AP$8<=$G20),"ü",""))) ->  | AR20: =IF(AR$2="","",IF(OR(AR$6<$B20,AR$6>$C20),"",IF(AND(OR(AR$2*AR$7>=$D20,AR$2*AS$7>=$D20),OR(AR$2*AR$7<=$E20,AR$2*AS$7<=$E20),AR$2*AR$8>=$F20,AR$2*AR$8<=$G20),"ü",""))) ->  | AT20: =IF(AT$2="","",IF(OR(AT$6<$B20,AT$6>$C20),"",IF(AND(OR(AT$2*AT$7>=$D20,AT$2*AU$7>=$D20),OR(AT$2*AT$7<=$E20,AT$2*AU$7<=$E20),AT$2*AT$8>=$F20,AT$2*AT$8<=$G20),"ü",""))) -> ü | AX20: =IF(AX$2="","",IF(OR(AX$6<$B20,AX$6>$C20),"",IF(AND(OR(AX$2*AX$7>=$D20,AX$2*AY$7>=$D20),OR(AX$2*AX$7<=$E20,AX$2*AY$7<=$E20),AX$2*AX$8>=$F20,AX$2*AX$8<=$G20),"ü",""))) -> ü | AZ20: =IF(AZ$2="","",IF(OR(AZ$6<$B20,AZ$6>$C20),"",IF(AND(OR(AZ$2*AZ$7>=$D20,AZ$2*BA$7>=$D20),OR(AZ$2*AZ$7<=$E20,AZ$2*BA$7<=$E20),AZ$2*AZ$8>=$F20,AZ$2*AZ$8<=$G20),"ü",""))) ->  | BB20: =IF(BB$2="","",IF(OR(BB$6<$B20,BB$6>$C20),"",IF(AND(OR(BB$2*BB$7>=$D20,BB$2*BC$7>=$D20),OR(BB$2*BB$7<=$E20,BB$2*BC$7<=$E20),BB$2*BB$8>=$F20,BB$2*BB$8<=$G20),"ü",""))) ->  | BD20: =IF(BD$2="","",IF(OR(BD$6<$B20,BD$6>$C20),"",IF(AND(OR(BD$2*BD$7>=$D20,BD$2*BE$7>=$D20),OR(BD$2*BD$7<=$E20,BD$2*BE$7<=$E20),BD$2*BD$8>=$F20,BD$2*BD$8<=$G20),"ü",""))) ->  | BF20: =IF(BF$2="","",IF(OR(BF$6<$B20,BF$6>$C20),"",IF(AND(OR(BF$2*BF$7>=$D20,BF$2*BG$7>=$D20),OR(BF$2*BF$7<=$E20,BF$2*BG$7<=$E20),BF$2*BF$8>=$F20,BF$2*BF$8<=$G20),"ü",""))) ->  | BH20: =IF(BH$2="","",IF(OR(BH$6<$B20,BH$6>$C20),"",IF(AND(OR(BH$2*BH$7>=$D20,BH$2*BI$7>=$D20),OR(BH$2*BH$7<=$E20,BH$2*BI$7<=$E20),BH$2*BH$8>=$F20,BH$2*BH$8<=$G20),"ü",""))) ->  | BJ20: =IF(BJ$2="","",IF(OR(BJ$6<$B20,BJ$6>$C20),"",IF(AND(OR(BJ$2*BJ$7>=$D20,BJ$2*BK$7>=$D20),OR(BJ$2*BJ$7<=$E20,BJ$2*BK$7<=$E20),BJ$2*BJ$8>=$F20,BJ$2*BJ$8<=$G20),"ü",""))) ->  | BL20: =IF(BL$2="","",IF(OR(BL$6<$B20,BL$6>$C20),"",IF(AND(OR(BL$2*BL$7>=$D20,BL$2*BM$7>=$D20),OR(BL$2*BL$7<=$E20,BL$2*BM$7<=$E20),BL$2*BL$8>=$F20,BL$2*BL$8<=$G20),"ü",""))) ->  | BP20: N/A | BQ20: N/A | BR20: N/A
A21: Powerbank.250DALI | B21: DIFFERENT FORMULA ---> | H21: =IF(H22<>"",H22,IF(H23<>"",H23,IF(H24<>"",H24,H25))) -> ü | J21: =IF(J22<>"",J22,IF(J23<>"",J23,IF(J24<>"",J24,J25))) -> ü | L21: =IF(L22<>"",L22,IF(L23<>"",L23,IF(L24<>"",L24,L25))) -> ü | N21: =IF(N22<>"",N22,IF(N23<>"",N23,IF(N24<>"",N24,N25))) ->  | P21: =IF(P22<>"",P22,IF(P23<>"",P23,IF(P24<>"",P24,P25))) ->  | R21: =IF(R22<>"",R22,IF(R23<>"",R23,IF(R24<>"",R24,R25))) ->  | T21: =IF(T22<>"",T22,IF(T23<>"",T23,IF(T24<>"",T24,T25))) ->  | AB21: =IF(AB22<>"",AB22,IF(AB23<>"",AB23,IF(AB24<>"",AB24,AB25))) -> ü | AD21: =IF(AD22<>"",AD22,IF(AD23<>"",AD23,IF(AD24<>"",AD24,AD25))) ->  | AH21: =IF(AH22<>"",AH22,IF(AH23<>"",AH23,IF(AH24<>"",AH24,AH25))) ->  | AN21: =IF(AN22<>"",AN22,IF(AN23<>"",AN23,IF(AN24<>"",AN24,AN25))) -> ü | AP21: =IF(AP22<>"",AP22,IF(AP23<>"",AP23,IF(AP24<>"",AP24,AP25))) ->  | AR21: =IF(AR22<>"",AR22,IF(AR23<>"",AR23,IF(AR24<>"",AR24,AR25))) ->  | AT21: =IF(AT22<>"",AT22,IF(AT23<>"",AT23,IF(AT24<>"",AT24,AT25))) -> ü | AX21: =IF(AX22<>"",AX22,IF(AX23<>"",AX23,IF(AX24<>"",AX24,AX25))) -> ü | AZ21: =IF(AZ22<>"",AZ22,IF(AZ23<>"",AZ23,IF(AZ24<>"",AZ24,AZ25))) ->  | BB21: =IF(BB22<>"",BB22,IF(BB23<>"",BB23,IF(BB24<>"",BB24,BB25))) ->  | BD21: =IF(BD22<>"",BD22,IF(BD23<>"",BD23,IF(BD24<>"",BD24,BD25))) ->  | BF21: =IF(BF22<>"",BF22,IF(BF23<>"",BF23,IF(BF24<>"",BF24,BF25))) ->  | BJ21: =IF(BJ22<>"",BJ22,IF(BJ23<>"",BJ23,IF(BJ24<>"",BJ24,BJ25))) ->  | BL21: =IF(BL22<>"",BL22,IF(BL23<>"",BL23,IF(BL24<>"",BL24,BL25))) ->  | BP21: N/A | BQ21: N/A | BR21: N/A
A22: hide | B22: 200 | C22: 200 | D22: 9 | E22: 42 | F22: 1.8 | G22: 8.4 | H22: =IF(H$2="","",IF(OR(H$6<$B22,H$6>$C22),"",IF(AND(OR(H$2*H$7>=$D22,H$2*I$7>=$D22),OR(H$2*H$7<=$E22,H$2*I$7<=$E22),H$2*H$8>=$F22,H$2*H$8<=$G22),"ü",""))) ->  | J22: =IF(J$2="","",IF(OR(J$6<$B22,J$6>$C22),"",IF(AND(OR(J$2*J$7>=$D22,J$2*K$7>=$D22),OR(J$2*J$7<=$E22,J$2*K$7<=$E22),J$2*J$8>=$F22,J$2*J$8<=$G22),"ü",""))) ->  | L22: =IF(L$2="","",IF(OR(L$6<$B22,L$6>$C22),"",IF(AND(OR(L$2*L$7>=$D22,L$2*M$7>=$D22),OR(L$2*L$7<=$E22,L$2*M$7<=$E22),L$2*L$8>=$F22,L$2*L$8<=$G22),"ü",""))) ->  | N22: =IF(N$2="","",IF(OR(N$6<$B22,N$6>$C22),"",IF(AND(OR(N$2*N$7>=$D22,N$2*O$7>=$D22),OR(N$2*N$7<=$E22,N$2*O$7<=$E22),N$2*N$8>=$F22,N$2*N$8<=$G22),"ü",""))) ->  | P22: =IF(P$2="","",IF(OR(P$6<$B22,P$6>$C22),"",IF(AND(OR(P$2*P$7>=$D22,P$2*Q$7>=$D22),OR(P$2*P$7<=$E22,P$2*Q$7<=$E22),P$2*P$8>=$F22,P$2*P$8<=$G22),"ü",""))) ->  | R22: =IF(R$2="","",IF(OR(R$6<$B22,R$6>$C22),"",IF(AND(OR(R$2*R$7>=$D22,R$2*S$7>=$D22),OR(R$2*R$7<=$E22,R$2*S$7<=$E22),R$2*R$8>=$F22,R$2*R$8<=$G22),"ü",""))) ->  | T22: =IF(T$2="","",IF(OR(T$6<$B22,T$6>$C22),"",IF(AND(OR(T$2*T$7>=$D22,T$2*U$7>=$D22),OR(T$2*T$7<=$E22,T$2*U$7<=$E22),T$2*T$8>=$F22,T$2*T$8<=$G22),"ü",""))) ->  | V22: =IF(V$2="","",IF(OR(V$6<$B22,V$6>$C22),"",IF(AND(OR(V$2*V$7>=$D22,V$2*W$7>=$D22),OR(V$2*V$7<=$E22,V$2*W$7<=$E22),V$2*V$8>=$F22,V$2*V$8<=$G22),"ü",""))) ->  | AB22: =IF(AB$2="","",IF(OR(AB$6<$B22,AB$6>$C22),"",IF(AND(OR(AB$2*AB$7>=$D22,AB$2*AC$7>=$D22),OR(AB$2*AB$7<=$E22,AB$2*AC$7<=$E22),AB$2*AB$8>=$F22,AB$2*AB$8<=$G22),"ü",""))) ->  | AD22: =IF(AD$2="","",IF(OR(AD$6<$B22,AD$6>$C22),"",IF(AND(OR(AD$2*AD$7>=$D22,AD$2*AE$7>=$D22),OR(AD$2*AD$7<=$E22,AD$2*AE$7<=$E22),AD$2*AD$8>=$F22,AD$2*AD$8<=$G22),"ü",""))) ->  | AF22: =IF(AF$2="","",IF(OR(AF$6<$B22,AF$6>$C22),"",IF(AND(OR(AF$2*AF$7>=$D22,AF$2*AG$7>=$D22),OR(AF$2*AF$7<=$E22,AF$2*AG$7<=$E22),AF$2*AF$8>=$F22,AF$2*AF$8<=$G22),"ü",""))) ->  | AH22: =IF(AH$2="","",IF(OR(AH$6<$B22,AH$6>$C22),"",IF(AND(OR(AH$2*AH$7>=$D22,AH$2*AI$7>=$D22),OR(AH$2*AH$7<=$E22,AH$2*AI$7<=$E22),AH$2*AH$8>=$F22,AH$2*AH$8<=$G22),"ü",""))) ->  | AJ22: =IF(AJ$2="","",IF(OR(AJ$6<$B22,AJ$6>$C22),"",IF(AND(OR(AJ$2*AJ$7>=$D22,AJ$2*AK$7>=$D22),OR(AJ$2*AJ$7<=$E22,AJ$2*AK$7<=$E22),AJ$2*AJ$8>=$F22,AJ$2*AJ$8<=$G22),"ü",""))) ->  | AN22: =IF(AN$2="","",IF(OR(AN$6<$B22,AN$6>$C22),"",IF(AND(OR(AN$2*AN$7>=$D22,AN$2*AO$7>=$D22),OR(AN$2*AN$7<=$E22,AN$2*AO$7<=$E22),AN$2*AN$8>=$F22,AN$2*AN$8<=$G22),"ü",""))) ->  | AP22: =IF(AP$2="","",IF(OR(AP$6<$B22,AP$6>$C22),"",IF(AND(OR(AP$2*AP$7>=$D22,AP$2*AQ$7>=$D22),OR(AP$2*AP$7<=$E22,AP$2*AQ$7<=$E22),AP$2*AP$8>=$F22,AP$2*AP$8<=$G22),"ü",""))) ->  | AR22: =IF(AR$2="","",IF(OR(AR$6<$B22,AR$6>$C22),"",IF(AND(OR(AR$2*AR$7>=$D22,AR$2*AS$7>=$D22),OR(AR$2*AR$7<=$E22,AR$2*AS$7<=$E22),AR$2*AR$8>=$F22,AR$2*AR$8<=$G22),"ü",""))) ->  | AT22: =IF(AT$2="","",IF(OR(AT$6<$B22,AT$6>$C22),"",IF(AND(OR(AT$2*AT$7>=$D22,AT$2*AU$7>=$D22),OR(AT$2*AT$7<=$E22,AT$2*AU$7<=$E22),AT$2*AT$8>=$F22,AT$2*AT$8<=$G22),"ü",""))) ->  | AX22: =IF(AX$2="","",IF(OR(AX$6<$B22,AX$6>$C22),"",IF(AND(OR(AX$2*AX$7>=$D22,AX$2*AY$7>=$D22),OR(AX$2*AX$7<=$E22,AX$2*AY$7<=$E22),AX$2*AX$8>=$F22,AX$2*AX$8<=$G22),"ü",""))) ->  | AZ22: =IF(AZ$2="","",IF(OR(AZ$6<$B22,AZ$6>$C22),"",IF(AND(OR(AZ$2*AZ$7>=$D22,AZ$2*BA$7>=$D22),OR(AZ$2*AZ$7<=$E22,AZ$2*BA$7<=$E22),AZ$2*AZ$8>=$F22,AZ$2*AZ$8<=$G22),"ü",""))) ->  | BB22: =IF(BB$2="","",IF(OR(BB$6<$B22,BB$6>$C22),"",IF(AND(OR(BB$2*BB$7>=$D22,BB$2*BC$7>=$D22),OR(BB$2*BB$7<=$E22,BB$2*BC$7<=$E22),BB$2*BB$8>=$F22,BB$2*BB$8<=$G22),"ü",""))) ->  | BF22: =IF(BF$2="","",IF(OR(BF$6<$B22,BF$6>$C22),"",IF(AND(OR(BF$2*BF$7>=$D22,BF$2*BG$7>=$D22),OR(BF$2*BF$7<=$E22,BF$2*BG$7<=$E22),BF$2*BF$8>=$F22,BF$2*BF$8<=$G22),"ü",""))) ->  | BH22: =IF(BH$2="","",IF(OR(BH$6<$B22,BH$6>$C22),"",IF(AND(OR(BH$2*BH$7>=$D22,BH$2*BI$7>=$D22),OR(BH$2*BH$7<=$E22,BH$2*BI$7<=$E22),BH$2*BH$8>=$F22,BH$2*BH$8<=$G22),"ü",""))) ->  | BJ22: =IF(BJ$2="","",IF(OR(BJ$6<$B22,BJ$6>$C22),"",IF(AND(OR(BJ$2*BJ$7>=$D22,BJ$2*BK$7>=$D22),OR(BJ$2*BJ$7<=$E22,BJ$2*BK$7<=$E22),BJ$2*BJ$8>=$F22,BJ$2*BJ$8<=$G22),"ü",""))) ->  | BL22: =IF(BL$2="","",IF(OR(BL$6<$B22,BL$6>$C22),"",IF(AND(OR(BL$2*BL$7>=$D22,BL$2*BM$7>=$D22),OR(BL$2*BL$7<=$E22,BL$2*BM$7<=$E22),BL$2*BL$8>=$F22,BL$2*BL$8<=$G22),"ü",""))) ->  | BP22: N/A | BQ22: N/A | BR22: N/A
A23: hide | B23: 250 | C23: 250 | D23: 9 | E23: 42 | F23: 2.25 | G23: 10.5 | H23: ü | AN23: ü | AT23: ü | AX23: ü | AZ23: =IF(AZ$2="","",IF(OR(AZ$6<$B23,AZ$6>$C23),"",IF(AND(OR(AZ$2*AZ$7>=$D23,AZ$2*BA$7>=$D23),OR(AZ$2*AZ$7<=$E23,AZ$2*BA$7<=$E23),AZ$2*AZ$8>=$F23,AZ$2*AZ$8<=$G23),"ü",""))) ->  | BB23: =IF(BB$2="","",IF(OR(BB$6<$B23,BB$6>$C23),"",IF(AND(OR(BB$2*BB$7>=$D23,BB$2*BC$7>=$D23),OR(BB$2*BB$7<=$E23,BB$2*BC$7<=$E23),BB$2*BB$8>=$F23,BB$2*BB$8<=$G23),"ü",""))) ->  | BJ23: =IF(BJ$2="","",IF(OR(BJ$6<$B23,BJ$6>$C23),"",IF(AND(OR(BJ$2*BJ$7>=$D23,BJ$2*BK$7>=$D23),OR(BJ$2*BJ$7<=$E23,BJ$2*BK$7<=$E23),BJ$2*BJ$8>=$F23,BJ$2*BJ$8<=$G23),"ü",""))) ->  | BP23: N/A | BQ23: N/A | BR23: N/A
A24: hide | B24: 300 | C24: 300 | D24: 9 | E24: 42 | F24: 2.7 | G24: 12.6 | AZ24: =IF(AZ$2="","",IF(OR(AZ$6<$B24,AZ$6>$C24),"",IF(AND(OR(AZ$2*AZ$7>=$D24,AZ$2*BA$7>=$D24),OR(AZ$2*AZ$7<=$E24,AZ$2*BA$7<=$E24),AZ$2*AZ$8>=$F24,AZ$2*AZ$8<=$G24),"ü",""))) ->  | BB24: =IF(BB$2="","",IF(OR(BB$6<$B24,BB$6>$C24),"",IF(AND(OR(BB$2*BB$7>=$D24,BB$2*BC$7>=$D24),OR(BB$2*BB$7<=$E24,BB$2*BC$7<=$E24),BB$2*BB$8>=$F24,BB$2*BB$8<=$G24),"ü",""))) ->  | BJ24: =IF(BJ$2="","",IF(OR(BJ$6<$B24,BJ$6>$C24),"",IF(AND(OR(BJ$2*BJ$7>=$D24,BJ$2*BK$7>=$D24),OR(BJ$2*BJ$7<=$E24,BJ$2*BK$7<=$E24),BJ$2*BJ$8>=$F24,BJ$2*BJ$8<=$G24),"ü",""))) ->  | BP24: N/A | BQ24: N/A | BR24: N/A
A25: hide | B25: 350 | C25: 350 | D25: 9 | E25: 42 | F25: 3.15 | G25: 14.7 | J25: ü | L25: ü | AB25: ü | AZ25: =IF(AZ$2="","",IF(OR(AZ$6<$B25,AZ$6>$C25),"",IF(AND(OR(AZ$2*AZ$7>=$D25,AZ$2*BA$7>=$D25),OR(AZ$2*AZ$7<=$E25,AZ$2*BA$7<=$E25),AZ$2*AZ$8>=$F25,AZ$2*AZ$8<=$G25),"ü",""))) ->  | BB25: =IF(BB$2="","",IF(OR(BB$6<$B25,BB$6>$C25),"",IF(AND(OR(BB$2*BB$7>=$D25,BB$2*BC$7>=$D25),OR(BB$2*BB$7<=$E25,BB$2*BC$7<=$E25),BB$2*BB$8>=$F25,BB$2*BB$8<=$G25),"ü",""))) ->  | BJ25: =IF(BJ$2="","",IF(OR(BJ$6<$B25,BJ$6>$C25),"",IF(AND(OR(BJ$2*BJ$7>=$D25,BJ$2*BK$7>=$D25),OR(BJ$2*BJ$7<=$E25,BJ$2*BK$7<=$E25),BJ$2*BJ$8>=$F25,BJ$2*BJ$8<=$G25),"ü",""))) ->  | BP25: N/A | BQ25: N/A | BR25: N/A
A26: Powerbank350.S | B26: 350 | C26: 350 | D26: 2.5 | E26: 6 | F26: 2 | G26: 4.2 | AZ26: =IF(AZ$2="","",IF(OR(AZ$6<$B26,AZ$6>$C26),"",IF(AND(OR(AZ$2*AZ$7>=$D26,AZ$2*BA$7>=$D26),OR(AZ$2*AZ$7<=$E26,AZ$2*BA$7<=$E26),AZ$2*AZ$8>=$F26,AZ$2*AZ$8<=$G26),"ü",""))) ->  | BB26: =IF(BB$2="","",IF(OR(BB$6<$B26,BB$6>$C26),"",IF(AND(OR(BB$2*BB$7>=$D26,BB$2*BC$7>=$D26),OR(BB$2*BB$7<=$E26,BB$2*BC$7<=$E26),BB$2*BB$8>=$F26,BB$2*BB$8<=$G26),"ü",""))) ->  | BJ26: =IF(BJ$2="","",IF(OR(BJ$6<$B26,BJ$6>$C26),"",IF(AND(OR(BJ$2*BJ$7>=$D26,BJ$2*BK$7>=$D26),OR(BJ$2*BJ$7<=$E26,BJ$2*BK$7<=$E26),BJ$2*BJ$8>=$F26,BJ$2*BJ$8<=$G26),"ü",""))) ->  | BP26: N/A | BQ26: N/A | BR26: N/A
A27: Powerbank350.M | B27: 350 | C27: 350 | D27: 12 | E27: 24 | F27: 4.2 | G27: 8.4 | J27: ü | L27: ü | AZ27: =IF(AZ$2="","",IF(OR(AZ$6<$B27,AZ$6>$C27),"",IF(AND(OR(AZ$2*AZ$7>=$D27,AZ$2*BA$7>=$D27),OR(AZ$2*AZ$7<=$E27,AZ$2*BA$7<=$E27),AZ$2*AZ$8>=$F27,AZ$2*AZ$8<=$G27),"ü",""))) ->  | BB27: =IF(BB$2="","",IF(OR(BB$6<$B27,BB$6>$C27),"",IF(AND(OR(BB$2*BB$7>=$D27,BB$2*BC$7>=$D27),OR(BB$2*BB$7<=$E27,BB$2*BC$7<=$E27),BB$2*BB$8>=$F27,BB$2*BB$8<=$G27),"ü",""))) ->  | BJ27: =IF(BJ$2="","",IF(OR(BJ$6<$B27,BJ$6>$C27),"",IF(AND(OR(BJ$2*BJ$7>=$D27,BJ$2*BK$7>=$D27),OR(BJ$2*BJ$7<=$E27,BJ$2*BK$7<=$E27),BJ$2*BJ$8>=$F27,BJ$2*BJ$8<=$G27),"ü",""))) ->  | BP27: N/A | BQ27: N/A | BR27: N/A
A28: Powerbank350.L | B28: 350 | C28: 350 | D28: 25 | E28: 42 | F28: 8.75 | G28: 14.7 | AB28: ü | AZ28: =IF(AZ$2="","",IF(OR(AZ$6<$B28,AZ$6>$C28),"",IF(AND(OR(AZ$2*AZ$7>=$D28,AZ$2*BA$7>=$D28),OR(AZ$2*AZ$7<=$E28,AZ$2*BA$7<=$E28),AZ$2*AZ$8>=$F28,AZ$2*AZ$8<=$G28),"ü",""))) ->  | BB28: =IF(BB$2="","",IF(OR(BB$6<$B28,BB$6>$C28),"",IF(AND(OR(BB$2*BB$7>=$D28,BB$2*BC$7>=$D28),OR(BB$2*BB$7<=$E28,BB$2*BC$7<=$E28),BB$2*BB$8>=$F28,BB$2*BB$8<=$G28),"ü",""))) ->  | BJ28: =IF(BJ$2="","",IF(OR(BJ$6<$B28,BJ$6>$C28),"",IF(AND(OR(BJ$2*BJ$7>=$D28,BJ$2*BK$7>=$D28),OR(BJ$2*BJ$7<=$E28,BJ$2*BK$7<=$E28),BJ$2*BJ$8>=$F28,BJ$2*BJ$8<=$G28),"ü",""))) ->  | BP28: N/A | BQ28: N/A | BR28: N/A
A29: Powerbank350.XL | B29: 350 | C29: 350 | D29: 43 | E29: 70 | F29: 15 | G29: 25 | P29: ü | AH29: ü | AZ29: =IF(AZ$2="","",IF(OR(AZ$6<$B29,AZ$6>$C29),"",IF(AND(OR(AZ$2*AZ$7>=$D29,AZ$2*BA$7>=$D29),OR(AZ$2*AZ$7<=$E29,AZ$2*BA$7<=$E29),AZ$2*AZ$8>=$F29,AZ$2*AZ$8<=$G29),"ü",""))) ->  | BB29: =IF(BB$2="","",IF(OR(BB$6<$B29,BB$6>$C29),"",IF(AND(OR(BB$2*BB$7>=$D29,BB$2*BC$7>=$D29),OR(BB$2*BB$7<=$E29,BB$2*BC$7<=$E29),BB$2*BB$8>=$F29,BB$2*BB$8<=$G29),"ü",""))) ->  | BF29: ü | BJ29: =IF(BJ$2="","",IF(OR(BJ$6<$B29,BJ$6>$C29),"",IF(AND(OR(BJ$2*BJ$7>=$D29,BJ$2*BK$7>=$D29),OR(BJ$2*BJ$7<=$E29,BJ$2*BK$7<=$E29),BJ$2*BJ$8>=$F29,BJ$2*BJ$8<=$G29),"ü",""))) ->  | BP29: N/A | BQ29: N/A | BR29: N/A
A30: Powerbank350-500.DALI | B30: DIFFERENT FORMULA ---> | H30: =IF(H31<>"",H31,IF(H32<>"",H32,IF(H33<>"",H33,H34))) ->  | J30: =IF(J31<>"",J31,IF(J32<>"",J32,IF(J33<>"",J33,J34))) -> ü | L30: =IF(L31<>"",L31,IF(L32<>"",L32,IF(L33<>"",L33,L34))) -> ü | N30: =IF(N31<>"",N31,IF(N32<>"",N32,IF(N33<>"",N33,N34))) ->  | P30: =IF(P31<>"",P31,IF(P32<>"",P32,IF(P33<>"",P33,P34))) ->  | R30: =IF(R31<>"",R31,IF(R32<>"",R32,IF(R33<>"",R33,R34))) ->  | T30: =IF(T31<>"",T31,IF(T32<>"",T32,IF(T33<>"",T33,T34))) ->  | V30: =IF(V31<>"",V31,IF(V32<>"",V32,IF(V33<>"",V33,V34))) -> ü | AB30: =IF(AB31<>"",AB31,IF(AB32<>"",AB32,IF(AB33<>"",AB33,AB34))) ->  | AD30: =IF(AD31<>"",AD31,IF(AD32<>"",AD32,IF(AD33<>"",AD33,AD34))) ->  | AF30: =IF(AF31<>"",AF31,IF(AF32<>"",AF32,IF(AF33<>"",AF33,AF34))) ->  | AH30: =IF(AH31<>"",AH31,IF(AH32<>"",AH32,IF(AH33<>"",AH33,AH34))) ->  | AJ30: =IF(AJ31<>"",AJ31,IF(AJ32<>"",AJ32,IF(AJ33<>"",AJ33,AJ34))) ->  | AN30: =IF(AN31<>"",AN31,IF(AN32<>"",AN32,IF(AN33<>"",AN33,AN34))) ->  | AP30: =IF(AP31<>"",AP31,IF(AP32<>"",AP32,IF(AP33<>"",AP33,AP34))) ->  | AR30: =IF(AR31<>"",AR31,IF(AR32<>"",AR32,IF(AR33<>"",AR33,AR34))) ->  | AT30: =IF(AT31<>"",AT31,IF(AT32<>"",AT32,IF(AT33<>"",AT33,AT34))) ->  | AX30: =IF(AX31<>"",AX31,IF(AX32<>"",AX32,IF(AX33<>"",AX33,AX34))) ->  | AZ30: =IF(AZ31<>"",AZ31,IF(AZ32<>"",AZ32,IF(AZ33<>"",AZ33,AZ34))) ->  | BB30: =IF(BB31<>"",BB31,IF(BB32<>"",BB32,IF(BB33<>"",BB33,BB34))) ->  | BD30: =IF(BD31<>"",BD31,IF(BD32<>"",BD32,IF(BD33<>"",BD33,BD34))) ->  | BF30: =IF(BF31<>"",BF31,IF(BF32<>"",BF32,IF(BF33<>"",BF33,BF34))) ->  | BH30: =IF(BH31<>"",BH31,IF(BH32<>"",BH32,IF(BH33<>"",BH33,BH34))) ->  | BJ30: =IF(BJ31<>"",BJ31,IF(BJ32<>"",BJ32,IF(BJ33<>"",BJ33,BJ34))) ->  | BL30: =IF(BL31<>"",BL31,IF(BL32<>"",BL32,IF(BL33<>"",BL33,BL34))) ->  | BP30: N/A | BQ30: N/A | BR30: N/A
A31: hide | B31: 350 | C31: 350 | D31: 9 | E31: 24 | F31: =(B31/1000)*D31 -> 3.15 | G31: =(C31/1000)*E31 -> 8.4 | H31: =IF(H$2="","",IF(OR(H$6<$B31,H$6>$C31),"",IF(AND(OR(H$2*H$7>=$D31,H$2*I$7>=$D31),OR(H$2*H$7<=$E31,H$2*I$7<=$E31),H$2*H$8>=$F31,H$2*H$8<=$G31),"ü",""))) ->  | J31: =IF(J$2="","",IF(OR(J$6<$B31,J$6>$C31),"",IF(AND(OR(J$2*J$7>=$D31,J$2*K$7>=$D31),OR(J$2*J$7<=$E31,J$2*K$7<=$E31),J$2*J$8>=$F31,J$2*J$8<=$G31),"ü",""))) -> ü | L31: =IF(L$2="","",IF(OR(L$6<$B31,L$6>$C31),"",IF(AND(OR(L$2*L$7>=$D31,L$2*M$7>=$D31),OR(L$2*L$7<=$E31,L$2*M$7<=$E31),L$2*L$8>=$F31,L$2*L$8<=$G31),"ü",""))) -> ü | N31: =IF(N$2="","",IF(OR(N$6<$B31,N$6>$C31),"",IF(AND(OR(N$2*N$7>=$D31,N$2*O$7>=$D31),OR(N$2*N$7<=$E31,N$2*O$7<=$E31),N$2*N$8>=$F31,N$2*N$8<=$G31),"ü",""))) ->  | P31: =IF(P$2="","",IF(OR(P$6<$B31,P$6>$C31),"",IF(AND(OR(P$2*P$7>=$D31,P$2*Q$7>=$D31),OR(P$2*P$7<=$E31,P$2*Q$7<=$E31),P$2*P$8>=$F31,P$2*P$8<=$G31),"ü",""))) ->  | R31: =IF(R$2="","",IF(OR(R$6<$B31,R$6>$C31),"",IF(AND(OR(R$2*R$7>=$D31,R$2*S$7>=$D31),OR(R$2*R$7<=$E31,R$2*S$7<=$E31),R$2*R$8>=$F31,R$2*R$8<=$G31),"ü",""))) ->  | T31: =IF(T$2="","",IF(OR(T$6<$B31,T$6>$C31),"",IF(AND(OR(T$2*T$7>=$D31,T$2*U$7>=$D31),OR(T$2*T$7<=$E31,T$2*U$7<=$E31),T$2*T$8>=$F31,T$2*T$8<=$G31),"ü",""))) ->  | V31: =IF(V$2="","",IF(OR(V$6<$B31,V$6>$C31),"",IF(AND(OR(V$2*V$7>=$D31,V$2*W$7>=$D31),OR(V$2*V$7<=$E31,V$2*W$7<=$E31),V$2*V$8>=$F31,V$2*V$8<=$G31),"ü",""))) ->  | AB31: =IF(AB$2="","",IF(OR(AB$6<$B31,AB$6>$C31),"",IF(AND(OR(AB$2*AB$7>=$D31,AB$2*AC$7>=$D31),OR(AB$2*AB$7<=$E31,AB$2*AC$7<=$E31),AB$2*AB$8>=$F31,AB$2*AB$8<=$G31),"ü",""))) ->  | AD31: =IF(AD$2="","",IF(OR(AD$6<$B31,AD$6>$C31),"",IF(AND(OR(AD$2*AD$7>=$D31,AD$2*AE$7>=$D31),OR(AD$2*AD$7<=$E31,AD$2*AE$7<=$E31),AD$2*AD$8>=$F31,AD$2*AD$8<=$G31),"ü",""))) ->  | AF31: =IF(AF$2="","",IF(OR(AF$6<$B31,AF$6>$C31),"",IF(AND(OR(AF$2*AF$7>=$D31,AF$2*AG$7>=$D31),OR(AF$2*AF$7<=$E31,AF$2*AG$7<=$E31),AF$2*AF$8>=$F31,AF$2*AF$8<=$G31),"ü",""))) ->  | AH31: =IF(AH$2="","",IF(OR(AH$6<$B31,AH$6>$C31),"",IF(AND(OR(AH$2*AH$7>=$D31,AH$2*AI$7>=$D31),OR(AH$2*AH$7<=$E31,AH$2*AI$7<=$E31),AH$2*AH$8>=$F31,AH$2*AH$8<=$G31),"ü",""))) ->  | AJ31: =IF(AJ$2="","",IF(OR(AJ$6<$B31,AJ$6>$C31),"",IF(AND(OR(AJ$2*AJ$7>=$D31,AJ$2*AK$7>=$D31),OR(AJ$2*AJ$7<=$E31,AJ$2*AK$7<=$E31),AJ$2*AJ$8>=$F31,AJ$2*AJ$8<=$G31),"ü",""))) ->  | AN31: =IF(AN$2="","",IF(OR(AN$6<$B31,AN$6>$C31),"",IF(AND(OR(AN$2*AN$7>=$D31,AN$2*AO$7>=$D31),OR(AN$2*AN$7<=$E31,AN$2*AO$7<=$E31),AN$2*AN$8>=$F31,AN$2*AN$8<=$G31),"ü",""))) ->  | AP31: =IF(AP$2="","",IF(OR(AP$6<$B31,AP$6>$C31),"",IF(AND(OR(AP$2*AP$7>=$D31,AP$2*AQ$7>=$D31),OR(AP$2*AP$7<=$E31,AP$2*AQ$7<=$E31),AP$2*AP$8>=$F31,AP$2*AP$8<=$G31),"ü",""))) ->  | AR31: =IF(AR$2="","",IF(OR(AR$6<$B31,AR$6>$C31),"",IF(AND(OR(AR$2*AR$7>=$D31,AR$2*AS$7>=$D31),OR(AR$2*AR$7<=$E31,AR$2*AS$7<=$E31),AR$2*AR$8>=$F31,AR$2*AR$8<=$G31),"ü",""))) ->  | AT31: =IF(AT$2="","",IF(OR(AT$6<$B31,AT$6>$C31),"",IF(AND(OR(AT$2*AT$7>=$D31,AT$2*AU$7>=$D31),OR(AT$2*AT$7<=$E31,AT$2*AU$7<=$E31),AT$2*AT$8>=$F31,AT$2*AT$8<=$G31),"ü",""))) ->  | AX31: =IF(AX$2="","",IF(OR(AX$6<$B31,AX$6>$C31),"",IF(AND(OR(AX$2*AX$7>=$D31,AX$2*AY$7>=$D31),OR(AX$2*AX$7<=$E31,AX$2*AY$7<=$E31),AX$2*AX$8>=$F31,AX$2*AX$8<=$G31),"ü",""))) ->  | AZ31: =IF(AZ$2="","",IF(OR(AZ$6<$B31,AZ$6>$C31),"",IF(AND(OR(AZ$2*AZ$7>=$D31,AZ$2*BA$7>=$D31),OR(AZ$2*AZ$7<=$E31,AZ$2*BA$7<=$E31),AZ$2*AZ$8>=$F31,AZ$2*AZ$8<=$G31),"ü",""))) ->  | BB31: =IF(BB$2="","",IF(OR(BB$6<$B31,BB$6>$C31),"",IF(AND(OR(BB$2*BB$7>=$D31,BB$2*BC$7>=$D31),OR(BB$2*BB$7<=$E31,BB$2*BC$7<=$E31),BB$2*BB$8>=$F31,BB$2*BB$8<=$G31),"ü",""))) ->  | BD31: =IF(BD$2="","",IF(OR(BD$6<$B31,BD$6>$C31),"",IF(AND(OR(BD$2*BD$7>=$D31,BD$2*BE$7>=$D31),OR(BD$2*BD$7<=$E31,BD$2*BE$7<=$E31),BD$2*BD$8>=$F31,BD$2*BD$8<=$G31),"ü",""))) ->  | BF31: =IF(BF$2="","",IF(OR(BF$6<$B31,BF$6>$C31),"",IF(AND(OR(BF$2*BF$7>=$D31,BF$2*BG$7>=$D31),OR(BF$2*BF$7<=$E31,BF$2*BG$7<=$E31),BF$2*BF$8>=$F31,BF$2*BF$8<=$G31),"ü",""))) ->  | BH31: =IF(BH$2="","",IF(OR(BH$6<$B31,BH$6>$C31),"",IF(AND(OR(BH$2*BH$7>=$D31,BH$2*BI$7>=$D31),OR(BH$2*BH$7<=$E31,BH$2*BI$7<=$E31),BH$2*BH$8>=$F31,BH$2*BH$8<=$G31),"ü",""))) ->  | BJ31: =IF(BJ$2="","",IF(OR(BJ$6<$B31,BJ$6>$C31),"",IF(AND(OR(BJ$2*BJ$7>=$D31,BJ$2*BK$7>=$D31),OR(BJ$2*BJ$7<=$E31,BJ$2*BK$7<=$E31),BJ$2*BJ$8>=$F31,BJ$2*BJ$8<=$G31),"ü",""))) ->  | BL31: =IF(BL$2="","",IF(OR(BL$6<$B31,BL$6>$C31),"",IF(AND(OR(BL$2*BL$7>=$D31,BL$2*BM$7>=$D31),OR(BL$2*BL$7<=$E31,BL$2*BM$7<=$E31),BL$2*BL$8>=$F31,BL$2*BL$8<=$G31),"ü",""))) ->  | BP31: N/A | BQ31: N/A | BR31: N/A
A32: hide | B32: 400 | C32: 400 | D32: 9 | E32: 24 | F32: =(B32/1000)*D32 -> 3.6 | G32: =(C32/1000)*E32 -> 9.6 | BP32: N/A | BQ32: N/A | BR32: N/A
A33: hide | B33: 450 | C33: 450 | D33: 9 | E33: 24 | F33: 4.05 | G33: 10.8 | BP33: N/A | BQ33: N/A | BR33: N/A
A34: hide | B34: 500 | C34: 500 | D34: 9 | E34: 24 | F34: 4.5 | G34: 12 | V34: ü | BP34: N/A | BQ34: N/A | BR34: N/A
A35: Powerbank350-700.DALI | B35: DIFFERENT FORMULA ---> | H35: =IF(H36<>"",H36,IF(H37<>"",H37,IF(H38<>"",H38,IF(H39<>"",H39,IF(H40<>"",H40,IF(H41<>"",H41,IF(H42<>"",H42,H43))))))) ->  | J35: =IF(J36<>"",J36,IF(J37<>"",J37,IF(J38<>"",J38,IF(J39<>"",J39,IF(J40<>"",J40,IF(J41<>"",J41,IF(J42<>"",J42,J43))))))) -> ü | L35: =IF(L36<>"",L36,IF(L37<>"",L37,IF(L38<>"",L38,IF(L39<>"",L39,IF(L40<>"",L40,IF(L41<>"",L41,IF(L42<>"",L42,L43))))))) -> ü | N35: =IF(N36<>"",N36,IF(N37<>"",N37,IF(N38<>"",N38,IF(N39<>"",N39,IF(N40<>"",N40,IF(N41<>"",N41,IF(N42<>"",N42,N43))))))) ->  | P35: =IF(P36<>"",P36,IF(P37<>"",P37,IF(P38<>"",P38,IF(P39<>"",P39,IF(P40<>"",P40,IF(P41<>"",P41,IF(P42<>"",P42,P43))))))) ->  | R35: =IF(R36<>"",R36,IF(R37<>"",R37,IF(R38<>"",R38,IF(R39<>"",R39,IF(R40<>"",R40,IF(R41<>"",R41,IF(R42<>"",R42,R43))))))) ->  | T35: =IF(T36<>"",T36,IF(T37<>"",T37,IF(T38<>"",T38,IF(T39<>"",T39,IF(T40<>"",T40,IF(T41<>"",T41,IF(T42<>"",T42,T43))))))) -> ü | V35: =IF(V36<>"",V36,IF(V37<>"",V37,IF(V38<>"",V38,IF(V39<>"",V39,IF(V40<>"",V40,IF(V41<>"",V41,IF(V42<>"",V42,V43))))))) -> ü | AB35: =IF(AB36<>"",AB36,IF(AB37<>"",AB37,IF(AB38<>"",AB38,IF(AB39<>"",AB39,IF(AB40<>"",AB40,IF(AB41<>"",AB41,IF(AB42<>"",AB42,AB43))))))) -> ü | AD35: =IF(AD36<>"",AD36,IF(AD37<>"",AD37,IF(AD38<>"",AD38,IF(AD39<>"",AD39,IF(AD40<>"",AD40,IF(AD41<>"",AD41,IF(AD42<>"",AD42,AD43))))))) -> ü | AF35: =IF(AF36<>"",AF36,IF(AF37<>"",AF37,IF(AF38<>"",AF38,IF(AF39<>"",AF39,IF(AF40<>"",AF40,IF(AF41<>"",AF41,IF(AF42<>"",AF42,AF43))))))) -> ü | AH35: =IF(AH36<>"",AH36,IF(AH37<>"",AH37,IF(AH38<>"",AH38,IF(AH39<>"",AH39,IF(AH40<>"",AH40,IF(AH41<>"",AH41,IF(AH42<>"",AH42,AH43))))))) ->  | AJ35: =IF(AJ36<>"",AJ36,IF(AJ37<>"",AJ37,IF(AJ38<>"",AJ38,IF(AJ39<>"",AJ39,IF(AJ40<>"",AJ40,IF(AJ41<>"",AJ41,IF(AJ42<>"",AJ42,AJ43))))))) ->  | AN35: =IF(AN36<>"",AN36,IF(AN37<>"",AN37,IF(AN38<>"",AN38,IF(AN39<>"",AN39,IF(AN40<>"",AN40,IF(AN41<>"",AN41,IF(AN42<>"",AN42,AN43))))))) ->  | AP35: =IF(AP36<>"",AP36,IF(AP37<>"",AP37,IF(AP38<>"",AP38,IF(AP39<>"",AP39,IF(AP40<>"",AP40,IF(AP41<>"",AP41,IF(AP42<>"",AP42,AP43))))))) ->  | AR35: =IF(AR36<>"",AR36,IF(AR37<>"",AR37,IF(AR38<>"",AR38,IF(AR39<>"",AR39,IF(AR40<>"",AR40,IF(AR41<>"",AR41,IF(AR42<>"",AR42,AR43))))))) -> ü | AT35: =IF(AT36<>"",AT36,IF(AT37<>"",AT37,IF(AT38<>"",AT38,IF(AT39<>"",AT39,IF(AT40<>"",AT40,IF(AT41<>"",AT41,IF(AT42<>"",AT42,AT43))))))) ->  | AX35: =IF(AX36<>"",AX36,IF(AX37<>"",AX37,IF(AX38<>"",AX38,IF(AX39<>"",AX39,IF(AX40<>"",AX40,IF(AX41<>"",AX41,IF(AX42<>"",AX42,AX43))))))) ->  | AZ35: =IF(AZ36<>"",AZ36,IF(AZ37<>"",AZ37,IF(AZ38<>"",AZ38,IF(AZ39<>"",AZ39,IF(AZ40<>"",AZ40,IF(AZ41<>"",AZ41,IF(AZ42<>"",AZ42,AZ43))))))) ->  | BB35: =IF(BB36<>"",BB36,IF(BB37<>"",BB37,IF(BB38<>"",BB38,IF(BB39<>"",BB39,IF(BB40<>"",BB40,IF(BB41<>"",BB41,IF(BB42<>"",BB42,BB43))))))) ->  | BD35: =IF(BD36<>"",BD36,IF(BD37<>"",BD37,IF(BD38<>"",BD38,IF(BD39<>"",BD39,IF(BD40<>"",BD40,IF(BD41<>"",BD41,IF(BD42<>"",BD42,BD43))))))) -> ü | BF35: =IF(BF36<>"",BF36,IF(BF37<>"",BF37,IF(BF38<>"",BF38,IF(BF39<>"",BF39,IF(BF40<>"",BF40,IF(BF41<>"",BF41,IF(BF42<>"",BF42,BF43))))))) ->  | BH35: =IF(BH36<>"",BH36,IF(BH37<>"",BH37,IF(BH38<>"",BH38,IF(BH39<>"",BH39,IF(BH40<>"",BH40,IF(BH41<>"",BH41,IF(BH42<>"",BH42,BH43))))))) ->  | BJ35: =IF(BJ36<>"",BJ36,IF(BJ37<>"",BJ37,IF(BJ38<>"",BJ38,IF(BJ39<>"",BJ39,IF(BJ40<>"",BJ40,IF(BJ41<>"",BJ41,IF(BJ42<>"",BJ42,BJ43))))))) ->  | BL35: =IF(BL36<>"",BL36,IF(BL37<>"",BL37,IF(BL38<>"",BL38,IF(BL39<>"",BL39,IF(BL40<>"",BL40,IF(BL41<>"",BL41,IF(BL42<>"",BL42,BL43))))))) -> ü | BP35: N/A | BQ35: N/A | BR35: N/A
A36: hide | B36: 350 | C36: 350 | D36: 9 | E36: 42 | F36: =(B36/1000)*D36 -> 3.15 | G36: =(C36/1000)*E36 -> 14.7 | H36: =IF(H$2="","",IF(OR(H$6<$B36,H$6>$C36),"",IF(AND(OR(H$2*H$7>=$D36,H$2*I$7>=$D36),OR(H$2*H$7<=$E36,H$2*I$7<=$E36),H$2*H$8>=$F36,H$2*H$8<=$G36),"ü",""))) ->  | J36: =IF(J$2="","",IF(OR(J$6<$B36,J$6>$C36),"",IF(AND(OR(J$2*J$7>=$D36,J$2*K$7>=$D36),OR(J$2*J$7<=$E36,J$2*K$7<=$E36),J$2*J$8>=$F36,J$2*J$8<=$G36),"ü",""))) -> ü | L36: =IF(L$2="","",IF(OR(L$6<$B36,L$6>$C36),"",IF(AND(OR(L$2*L$7>=$D36,L$2*M$7>=$D36),OR(L$2*L$7<=$E36,L$2*M$7<=$E36),L$2*L$8>=$F36,L$2*L$8<=$G36),"ü",""))) -> ü | N36: =IF(N$2="","",IF(OR(N$6<$B36,N$6>$C36),"",IF(AND(OR(N$2*N$7>=$D36,N$2*O$7>=$D36),OR(N$2*N$7<=$E36,N$2*O$7<=$E36),N$2*N$8>=$F36,N$2*N$8<=$G36),"ü",""))) ->  | P36: =IF(P$2="","",IF(OR(P$6<$B36,P$6>$C36),"",IF(AND(OR(P$2*P$7>=$D36,P$2*Q$7>=$D36),OR(P$2*P$7<=$E36,P$2*Q$7<=$E36),P$2*P$8>=$F36,P$2*P$8<=$G36),"ü",""))) ->  | R36: =IF(R$2="","",IF(OR(R$6<$B36,R$6>$C36),"",IF(AND(OR(R$2*R$7>=$D36,R$2*S$7>=$D36),OR(R$2*R$7<=$E36,R$2*S$7<=$E36),R$2*R$8>=$F36,R$2*R$8<=$G36),"ü",""))) ->  | T36: =IF(T$2="","",IF(OR(T$6<$B36,T$6>$C36),"",IF(AND(OR(T$2*T$7>=$D36,T$2*U$7>=$D36),OR(T$2*T$7<=$E36,T$2*U$7<=$E36),T$2*T$8>=$F36,T$2*T$8<=$G36),"ü",""))) ->  | V36: =IF(V$2="","",IF(OR(V$6<$B36,V$6>$C36),"",IF(AND(OR(V$2*V$7>=$D36,V$2*W$7>=$D36),OR(V$2*V$7<=$E36,V$2*W$7<=$E36),V$2*V$8>=$F36,V$2*V$8<=$G36),"ü",""))) ->  | AB36: =IF(AB$2="","",IF(OR(AB$6<$B36,AB$6>$C36),"",IF(AND(OR(AB$2*AB$7>=$D36,AB$2*AC$7>=$D36),OR(AB$2*AB$7<=$E36,AB$2*AC$7<=$E36),AB$2*AB$8>=$F36,AB$2*AB$8<=$G36),"ü",""))) -> ü | AD36: =IF(AD$2="","",IF(OR(AD$6<$B36,AD$6>$C36),"",IF(AND(OR(AD$2*AD$7>=$D36,AD$2*AE$7>=$D36),OR(AD$2*AD$7<=$E36,AD$2*AE$7<=$E36),AD$2*AD$8>=$F36,AD$2*AD$8<=$G36),"ü",""))) ->  | AF36: =IF(AF$2="","",IF(OR(AF$6<$B36,AF$6>$C36),"",IF(AND(OR(AF$2*AF$7>=$D36,AF$2*AG$7>=$D36),OR(AF$2*AF$7<=$E36,AF$2*AG$7<=$E36),AF$2*AF$8>=$F36,AF$2*AF$8<=$G36),"ü",""))) ->  | AH36: =IF(AH$2="","",IF(OR(AH$6<$B36,AH$6>$C36),"",IF(AND(OR(AH$2*AH$7>=$D36,AH$2*AI$7>=$D36),OR(AH$2*AH$7<=$E36,AH$2*AI$7<=$E36),AH$2*AH$8>=$F36,AH$2*AH$8<=$G36),"ü",""))) ->  | AJ36: =IF(AJ$2="","",IF(OR(AJ$6<$B36,AJ$6>$C36),"",IF(AND(OR(AJ$2*AJ$7>=$D36,AJ$2*AK$7>=$D36),OR(AJ$2*AJ$7<=$E36,AJ$2*AK$7<=$E36),AJ$2*AJ$8>=$F36,AJ$2*AJ$8<=$G36),"ü",""))) ->  | AN36: =IF(AN$2="","",IF(OR(AN$6<$B36,AN$6>$C36),"",IF(AND(OR(AN$2*AN$7>=$D36,AN$2*AO$7>=$D36),OR(AN$2*AN$7<=$E36,AN$2*AO$7<=$E36),AN$2*AN$8>=$F36,AN$2*AN$8<=$G36),"ü",""))) ->  | AP36: =IF(AP$2="","",IF(OR(AP$6<$B36,AP$6>$C36),"",IF(AND(OR(AP$2*AP$7>=$D36,AP$2*AQ$7>=$D36),OR(AP$2*AP$7<=$E36,AP$2*AQ$7<=$E36),AP$2*AP$8>=$F36,AP$2*AP$8<=$G36),"ü",""))) ->  | AR36: =IF(AR$2="","",IF(OR(AR$6<$B36,AR$6>$C36),"",IF(AND(OR(AR$2*AR$7>=$D36,AR$2*AS$7>=$D36),OR(AR$2*AR$7<=$E36,AR$2*AS$7<=$E36),AR$2*AR$8>=$F36,AR$2*AR$8<=$G36),"ü",""))) ->  | AT36: =IF(AT$2="","",IF(OR(AT$6<$B36,AT$6>$C36),"",IF(AND(OR(AT$2*AT$7>=$D36,AT$2*AU$7>=$D36),OR(AT$2*AT$7<=$E36,AT$2*AU$7<=$E36),AT$2*AT$8>=$F36,AT$2*AT$8<=$G36),"ü",""))) ->  | AX36: =IF(AX$2="","",IF(OR(AX$6<$B36,AX$6>$C36),"",IF(AND(OR(AX$2*AX$7>=$D36,AX$2*AY$7>=$D36),OR(AX$2*AX$7<=$E36,AX$2*AY$7<=$E36),AX$2*AX$8>=$F36,AX$2*AX$8<=$G36),"ü",""))) ->  | AZ36: =IF(AZ$2="","",IF(OR(AZ$6<$B36,AZ$6>$C36),"",IF(AND(OR(AZ$2*AZ$7>=$D36,AZ$2*BA$7>=$D36),OR(AZ$2*AZ$7<=$E36,AZ$2*BA$7<=$E36),AZ$2*AZ$8>=$F36,AZ$2*AZ$8<=$G36),"ü",""))) ->  | BB36: =IF(BB$2="","",IF(OR(BB$6<$B36,BB$6>$C36),"",IF(AND(OR(BB$2*BB$7>=$D36,BB$2*BC$7>=$D36),OR(BB$2*BB$7<=$E36,BB$2*BC$7<=$E36),BB$2*BB$8>=$F36,BB$2*BB$8<=$G36),"ü",""))) ->  | BD36: =IF(BD$2="","",IF(OR(BD$6<$B36,BD$6>$C36),"",IF(AND(OR(BD$2*BD$7>=$D36,BD$2*BE$7>=$D36),OR(BD$2*BD$7<=$E36,BD$2*BE$7<=$E36),BD$2*BD$8>=$F36,BD$2*BD$8<=$G36),"ü",""))) ->  | BF36: =IF(BF$2="","",IF(OR(BF$6<$B36,BF$6>$C36),"",IF(AND(OR(BF$2*BF$7>=$D36,BF$2*BG$7>=$D36),OR(BF$2*BF$7<=$E36,BF$2*BG$7<=$E36),BF$2*BF$8>=$F36,BF$2*BF$8<=$G36),"ü",""))) ->  | BH36: =IF(BH$2="","",IF(OR(BH$6<$B36,BH$6>$C36),"",IF(AND(OR(BH$2*BH$7>=$D36,BH$2*BI$7>=$D36),OR(BH$2*BH$7<=$E36,BH$2*BI$7<=$E36),BH$2*BH$8>=$F36,BH$2*BH$8<=$G36),"ü",""))) ->  | BJ36: =IF(BJ$2="","",IF(OR(BJ$6<$B36,BJ$6>$C36),"",IF(AND(OR(BJ$2*BJ$7>=$D36,BJ$2*BK$7>=$D36),OR(BJ$2*BJ$7<=$E36,BJ$2*BK$7<=$E36),BJ$2*BJ$8>=$F36,BJ$2*BJ$8<=$G36),"ü",""))) ->  | BL36: =IF(BL$2="","",IF(OR(BL$6<$B36,BL$6>$C36),"",IF(AND(OR(BL$2*BL$7>=$D36,BL$2*BM$7>=$D36),OR(BL$2*BL$7<=$E36,BL$2*BM$7<=$E36),BL$2*BL$8>=$F36,BL$2*BL$8<=$G36),"ü",""))) ->  | BP36: N/A | BQ36: N/A | BR36: N/A
A37: hide | B37: 400 | C37: 400 | D37: 9 | E37: 42 | F37: =(B37/1000)*D37 -> 3.6 | G37: =(C37/1000)*E37 -> 16.8 | BP37: N/A | BQ37: N/A | BR37: N/A
A38: hide | B38: 450 | C38: 450 | D38: 9 | E38: 42 | F38: 4.05 | G38: 18.9 | BP38: N/A | BQ38: N/A | BR38: N/A
A39: hide | B39: 500 | C39: 500 | D39: 9 | E39: 42 | F39: =(B39/1000)*D39 -> 4.5 | G39: =(C39/1000)*E39 -> 21 | H39: =IF(H$2="","",IF(OR(H$6<$B39,H$6>$C39),"",IF(AND(OR(H$2*H$7>=$D39,H$2*I$7>=$D39),OR(H$2*H$7<=$E39,H$2*I$7<=$E39),H$2*H$8>=$F39,H$2*H$8<=$G39),"ü",""))) ->  | J39: =IF(J$2="","",IF(OR(J$6<$B39,J$6>$C39),"",IF(AND(OR(J$2*J$7>=$D39,J$2*K$7>=$D39),OR(J$2*J$7<=$E39,J$2*K$7<=$E39),J$2*J$8>=$F39,J$2*J$8<=$G39),"ü",""))) ->  | L39: =IF(L$2="","",IF(OR(L$6<$B39,L$6>$C39),"",IF(AND(OR(L$2*L$7>=$D39,L$2*M$7>=$D39),OR(L$2*L$7<=$E39,L$2*M$7<=$E39),L$2*L$8>=$F39,L$2*L$8<=$G39),"ü",""))) ->  | N39: =IF(N$2="","",IF(OR(N$6<$B39,N$6>$C39),"",IF(AND(OR(N$2*N$7>=$D39,N$2*O$7>=$D39),OR(N$2*N$7<=$E39,N$2*O$7<=$E39),N$2*N$8>=$F39,N$2*N$8<=$G39),"ü",""))) ->  | P39: =IF(P$2="","",IF(OR(P$6<$B39,P$6>$C39),"",IF(AND(OR(P$2*P$7>=$D39,P$2*Q$7>=$D39),OR(P$2*P$7<=$E39,P$2*Q$7<=$E39),P$2*P$8>=$F39,P$2*P$8<=$G39),"ü",""))) ->  | R39: =IF(R$2="","",IF(OR(R$6<$B39,R$6>$C39),"",IF(AND(OR(R$2*R$7>=$D39,R$2*S$7>=$D39),OR(R$2*R$7<=$E39,R$2*S$7<=$E39),R$2*R$8>=$F39,R$2*R$8<=$G39),"ü",""))) ->  | T39: =IF(T$2="","",IF(OR(T$6<$B39,T$6>$C39),"",IF(AND(OR(T$2*T$7>=$D39,T$2*U$7>=$D39),OR(T$2*T$7<=$E39,T$2*U$7<=$E39),T$2*T$8>=$F39,T$2*T$8<=$G39),"ü",""))) ->  | V39: =IF(V$2="","",IF(OR(V$6<$B39,V$6>$C39),"",IF(AND(OR(V$2*V$7>=$D39,V$2*W$7>=$D39),OR(V$2*V$7<=$E39,V$2*W$7<=$E39),V$2*V$8>=$F39,V$2*V$8<=$G39),"ü",""))) -> ü | AB39: =IF(AB$2="","",IF(OR(AB$6<$B39,AB$6>$C39),"",IF(AND(OR(AB$2*AB$7>=$D39,AB$2*AC$7>=$D39),OR(AB$2*AB$7<=$E39,AB$2*AC$7<=$E39),AB$2*AB$8>=$F39,AB$2*AB$8<=$G39),"ü",""))) ->  | AD39: =IF(AD$2="","",IF(OR(AD$6<$B39,AD$6>$C39),"",IF(AND(OR(AD$2*AD$7>=$D39,AD$2*AE$7>=$D39),OR(AD$2*AD$7<=$E39,AD$2*AE$7<=$E39),AD$2*AD$8>=$F39,AD$2*AD$8<=$G39),"ü",""))) -> ü | AF39: =IF(AF$2="","",IF(OR(AF$6<$B39,AF$6>$C39),"",IF(AND(OR(AF$2*AF$7>=$D39,AF$2*AG$7>=$D39),OR(AF$2*AF$7<=$E39,AF$2*AG$7<=$E39),AF$2*AF$8>=$F39,AF$2*AF$8<=$G39),"ü",""))) ->  | AH39: =IF(AH$2="","",IF(OR(AH$6<$B39,AH$6>$C39),"",IF(AND(OR(AH$2*AH$7>=$D39,AH$2*AI$7>=$D39),OR(AH$2*AH$7<=$E39,AH$2*AI$7<=$E39),AH$2*AH$8>=$F39,AH$2*AH$8<=$G39),"ü",""))) ->  | AJ39: =IF(AJ$2="","",IF(OR(AJ$6<$B39,AJ$6>$C39),"",IF(AND(OR(AJ$2*AJ$7>=$D39,AJ$2*AK$7>=$D39),OR(AJ$2*AJ$7<=$E39,AJ$2*AK$7<=$E39),AJ$2*AJ$8>=$F39,AJ$2*AJ$8<=$G39),"ü",""))) ->  | AN39: =IF(AN$2="","",IF(OR(AN$6<$B39,AN$6>$C39),"",IF(AND(OR(AN$2*AN$7>=$D39,AN$2*AO$7>=$D39),OR(AN$2*AN$7<=$E39,AN$2*AO$7<=$E39),AN$2*AN$8>=$F39,AN$2*AN$8<=$G39),"ü",""))) ->  | AP39: =IF(AP$2="","",IF(OR(AP$6<$B39,AP$6>$C39),"",IF(AND(OR(AP$2*AP$7>=$D39,AP$2*AQ$7>=$D39),OR(AP$2*AP$7<=$E39,AP$2*AQ$7<=$E39),AP$2*AP$8>=$F39,AP$2*AP$8<=$G39),"ü",""))) ->  | AR39: =IF(AR$2="","",IF(OR(AR$6<$B39,AR$6>$C39),"",IF(AND(OR(AR$2*AR$7>=$D39,AR$2*AS$7>=$D39),OR(AR$2*AR$7<=$E39,AR$2*AS$7<=$E39),AR$2*AR$8>=$F39,AR$2*AR$8<=$G39),"ü",""))) ->  | AT39: =IF(AT$2="","",IF(OR(AT$6<$B39,AT$6>$C39),"",IF(AND(OR(AT$2*AT$7>=$D39,AT$2*AU$7>=$D39),OR(AT$2*AT$7<=$E39,AT$2*AU$7<=$E39),AT$2*AT$8>=$F39,AT$2*AT$8<=$G39),"ü",""))) ->  | AX39: =IF(AX$2="","",IF(OR(AX$6<$B39,AX$6>$C39),"",IF(AND(OR(AX$2*AX$7>=$D39,AX$2*AY$7>=$D39),OR(AX$2*AX$7<=$E39,AX$2*AY$7<=$E39),AX$2*AX$8>=$F39,AX$2*AX$8<=$G39),"ü",""))) ->  | AZ39: =IF(AZ$2="","",IF(OR(AZ$6<$B39,AZ$6>$C39),"",IF(AND(OR(AZ$2*AZ$7>=$D39,AZ$2*BA$7>=$D39),OR(AZ$2*AZ$7<=$E39,AZ$2*BA$7<=$E39),AZ$2*AZ$8>=$F39,AZ$2*AZ$8<=$G39),"ü",""))) ->  | BB39: =IF(BB$2="","",IF(OR(BB$6<$B39,BB$6>$C39),"",IF(AND(OR(BB$2*BB$7>=$D39,BB$2*BC$7>=$D39),OR(BB$2*BB$7<=$E39,BB$2*BC$7<=$E39),BB$2*BB$8>=$F39,BB$2*BB$8<=$G39),"ü",""))) ->  | BD39: =IF(BD$2="","",IF(OR(BD$6<$B39,BD$6>$C39),"",IF(AND(OR(BD$2*BD$7>=$D39,BD$2*BE$7>=$D39),OR(BD$2*BD$7<=$E39,BD$2*BE$7<=$E39),BD$2*BD$8>=$F39,BD$2*BD$8<=$G39),"ü",""))) ->  | BF39: =IF(BF$2="","",IF(OR(BF$6<$B39,BF$6>$C39),"",IF(AND(OR(BF$2*BF$7>=$D39,BF$2*BG$7>=$D39),OR(BF$2*BF$7<=$E39,BF$2*BG$7<=$E39),BF$2*BF$8>=$F39,BF$2*BF$8<=$G39),"ü",""))) ->  | BH39: =IF(BH$2="","",IF(OR(BH$6<$B39,BH$6>$C39),"",IF(AND(OR(BH$2*BH$7>=$D39,BH$2*BI$7>=$D39),OR(BH$2*BH$7<=$E39,BH$2*BI$7<=$E39),BH$2*BH$8>=$F39,BH$2*BH$8<=$G39),"ü",""))) ->  | BJ39: =IF(BJ$2="","",IF(OR(BJ$6<$B39,BJ$6>$C39),"",IF(AND(OR(BJ$2*BJ$7>=$D39,BJ$2*BK$7>=$D39),OR(BJ$2*BJ$7<=$E39,BJ$2*BK$7<=$E39),BJ$2*BJ$8>=$F39,BJ$2*BJ$8<=$G39),"ü",""))) ->  | BL39: =IF(BL$2="","",IF(OR(BL$6<$B39,BL$6>$C39),"",IF(AND(OR(BL$2*BL$7>=$D39,BL$2*BM$7>=$D39),OR(BL$2*BL$7<=$E39,BL$2*BM$7<=$E39),BL$2*BL$8>=$F39,BL$2*BL$8<=$G39),"ü",""))) ->  | BP39: N/A | BQ39: N/A | BR39: N/A
A40: hide | B40: 550 | C40: 550 | D40: 9 | E40: 42 | F40: 4.95 | G40: 23.1 | BP40: N/A | BQ40: N/A | BR40: N/A
A41: hide | B41: 600 | C41: 600 | D41: 9 | E41: 42 | F41: 5.4 | G41: 25.2 | BP41: N/A | BQ41: N/A | BR41: N/A
A42: hide | B42: 650 | C42: 650 | D42: 9 | E42: 42 | F42: 5.85 | G42: 27.3 | BP42: N/A | BQ42: N/A | BR42: N/A
A43: hide | B43: 700 | C43: 700 | D43: 9 | E43: 42 | F43: 6.3 | G43: 29.4 | T43: ü | AF43: ü | AR43: ü | BD43: ü | BL43: ü | BP43: N/A | BQ43: N/A | BR43: N/A
A44: Powerbank500.M | B44: 500 | C44: 500 | D44: 6 | E44: 15 | F44: 3 | G44: 7.5 | H44: =IF(H$2="","",IF(OR(H$6<$B44,H$6>$C44),"",IF(AND(OR(H$2*H$7>=$D44,H$2*I$7>=$D44),OR(H$2*H$7<=$E44,H$2*I$7<=$E44),H$2*H$8>=$F44,H$2*H$8<=$G44),"ü",""))) ->  | J44: =IF(J$2="","",IF(OR(J$6<$B44,J$6>$C44),"",IF(AND(OR(J$2*J$7>=$D44,J$2*K$7>=$D44),OR(J$2*J$7<=$E44,J$2*K$7<=$E44),J$2*J$8>=$F44,J$2*J$8<=$G44),"ü",""))) ->  | L44: =IF(L$2="","",IF(OR(L$6<$B44,L$6>$C44),"",IF(AND(OR(L$2*L$7>=$D44,L$2*M$7>=$D44),OR(L$2*L$7<=$E44,L$2*M$7<=$E44),L$2*L$8>=$F44,L$2*L$8<=$G44),"ü",""))) ->  | N44: =IF(N$2="","",IF(OR(N$6<$B44,N$6>$C44),"",IF(AND(OR(N$2*N$7>=$D44,N$2*O$7>=$D44),OR(N$2*N$7<=$E44,N$2*O$7<=$E44),N$2*N$8>=$F44,N$2*N$8<=$G44),"ü",""))) ->  | P44: =IF(P$2="","",IF(OR(P$6<$B44,P$6>$C44),"",IF(AND(OR(P$2*P$7>=$D44,P$2*Q$7>=$D44),OR(P$2*P$7<=$E44,P$2*Q$7<=$E44),P$2*P$8>=$F44,P$2*P$8<=$G44),"ü",""))) ->  | R44: =IF(R$2="","",IF(OR(R$6<$B44,R$6>$C44),"",IF(AND(OR(R$2*R$7>=$D44,R$2*S$7>=$D44),OR(R$2*R$7<=$E44,R$2*S$7<=$E44),R$2*R$8>=$F44,R$2*R$8<=$G44),"ü",""))) ->  | T44: =IF(T$2="","",IF(OR(T$6<$B44,T$6>$C44),"",IF(AND(OR(T$2*T$7>=$D44,T$2*U$7>=$D44),OR(T$2*T$7<=$E44,T$2*U$7<=$E44),T$2*T$8>=$F44,T$2*T$8<=$G44),"ü",""))) ->  | AB44: =IF(AB$2="","",IF(OR(AB$6<$B44,AB$6>$C44),"",IF(AND(OR(AB$2*AB$7>=$D44,AB$2*AC$7>=$D44),OR(AB$2*AB$7<=$E44,AB$2*AC$7<=$E44),AB$2*AB$8>=$F44,AB$2*AB$8<=$G44),"ü",""))) ->  | AF44: =IF(AF$2="","",IF(OR(AF$6<$B44,AF$6>$C44),"",IF(AND(OR(AF$2*AF$7>=$D44,AF$2*AG$7>=$D44),OR(AF$2*AF$7<=$E44,AF$2*AG$7<=$E44),AF$2*AF$8>=$F44,AF$2*AF$8<=$G44),"ü",""))) ->  | AH44: =IF(AH$2="","",IF(OR(AH$6<$B44,AH$6>$C44),"",IF(AND(OR(AH$2*AH$7>=$D44,AH$2*AI$7>=$D44),OR(AH$2*AH$7<=$E44,AH$2*AI$7<=$E44),AH$2*AH$8>=$F44,AH$2*AH$8<=$G44),"ü",""))) ->  | AP44: =IF(AP$2="","",IF(OR(AP$6<$B44,AP$6>$C44),"",IF(AND(OR(AP$2*AP$7>=$D44,AP$2*AQ$7>=$D44),OR(AP$2*AP$7<=$E44,AP$2*AQ$7<=$E44),AP$2*AP$8>=$F44,AP$2*AP$8<=$G44),"ü",""))) ->  | AR44: =IF(AR$2="","",IF(OR(AR$6<$B44,AR$6>$C44),"",IF(AND(OR(AR$2*AR$7>=$D44,AR$2*AS$7>=$D44),OR(AR$2*AR$7<=$E44,AR$2*AS$7<=$E44),AR$2*AR$8>=$F44,AR$2*AR$8<=$G44),"ü",""))) ->  | AT44: =IF(AT$2="","",IF(OR(AT$6<$B44,AT$6>$C44),"",IF(AND(OR(AT$2*AT$7>=$D44,AT$2*AU$7>=$D44),OR(AT$2*AT$7<=$E44,AT$2*AU$7<=$E44),AT$2*AT$8>=$F44,AT$2*AT$8<=$G44),"ü",""))) ->  | AZ44: =IF(AZ$2="","",IF(OR(AZ$6<$B44,AZ$6>$C44),"",IF(AND(OR(AZ$2*AZ$7>=$D44,AZ$2*BA$7>=$D44),OR(AZ$2*AZ$7<=$E44,AZ$2*BA$7<=$E44),AZ$2*AZ$8>=$F44,AZ$2*AZ$8<=$G44),"ü",""))) ->  | BB44: =IF(BB$2="","",IF(OR(BB$6<$B44,BB$6>$C44),"",IF(AND(OR(BB$2*BB$7>=$D44,BB$2*BC$7>=$D44),OR(BB$2*BB$7<=$E44,BB$2*BC$7<=$E44),BB$2*BB$8>=$F44,BB$2*BB$8<=$G44),"ü",""))) ->  | BD44: =IF(BD$2="","",IF(OR(BD$6<$B44,BD$6>$C44),"",IF(AND(OR(BD$2*BD$7>=$D44,BD$2*BE$7>=$D44),OR(BD$2*BD$7<=$E44,BD$2*BE$7<=$E44),BD$2*BD$8>=$F44,BD$2*BD$8<=$G44),"ü",""))) ->  | BJ44: =IF(BJ$2="","",IF(OR(BJ$6<$B44,BJ$6>$C44),"",IF(AND(OR(BJ$2*BJ$7>=$D44,BJ$2*BK$7>=$D44),OR(BJ$2*BJ$7<=$E44,BJ$2*BK$7<=$E44),BJ$2*BJ$8>=$F44,BJ$2*BJ$8<=$G44),"ü",""))) ->  | BL44: =IF(BL$2="","",IF(OR(BL$6<$B44,BL$6>$C44),"",IF(AND(OR(BL$2*BL$7>=$D44,BL$2*BM$7>=$D44),OR(BL$2*BL$7<=$E44,BL$2*BM$7<=$E44),BL$2*BL$8>=$F44,BL$2*BL$8<=$G44),"ü",""))) ->  | BP44: N/A | BQ44: N/A | BR44: N/A
A45: Powerbank500.L | B45: 500 | C45: 500 | D45: 24 | E45: 42 | F45: 12.5 | G45: 21 | AD45: ü | BP45: N/A | BQ45: N/A | BR45: N/A
A46: Powerbank700.S | B46: 700 | C46: 700 | D46: 6 | E46: 15 | F46: 4.2 | G46: 10.5 | AJ46: ü | AP46: ü | AZ46: =IF(AZ$2="","",IF(OR(AZ$6<$B46,AZ$6>$C46),"",IF(AND(OR(AZ$2*AZ$7>=$D46,AZ$2*BA$7>=$D46),OR(AZ$2*AZ$7<=$E46,AZ$2*BA$7<=$E46),AZ$2*AZ$8>=$F46,AZ$2*AZ$8<=$G46),"ü",""))) -> ü | BB46: =IF(BB$2="","",IF(OR(BB$6<$B46,BB$6>$C46),"",IF(AND(OR(BB$2*BB$7>=$D46,BB$2*BC$7>=$D46),OR(BB$2*BB$7<=$E46,BB$2*BC$7<=$E46),BB$2*BB$8>=$F46,BB$2*BB$8<=$G46),"ü",""))) ->  | BD46: ü | BJ46: =IF(BJ$2="","",IF(OR(BJ$6<$B46,BJ$6>$C46),"",IF(AND(OR(BJ$2*BJ$7>=$D46,BJ$2*BK$7>=$D46),OR(BJ$2*BJ$7<=$E46,BJ$2*BK$7<=$E46),BJ$2*BJ$8>=$F46,BJ$2*BJ$8<=$G46),"ü",""))) ->  | BL46: ü | BP46: N/A | BQ46: N/A | BR46: N/A
A47: Powerbank700.M | B47: 700 | C47: 700 | D47: 12 | E47: 24 | F47: 8.5 | G47: 16.8 | T47: ü | AR47: ü | AZ47: =IF(AZ$2="","",IF(OR(AZ$6<$B47,AZ$6>$C47),"",IF(AND(OR(AZ$2*AZ$7>=$D47,AZ$2*BA$7>=$D47),OR(AZ$2*AZ$7<=$E47,AZ$2*BA$7<=$E47),AZ$2*AZ$8>=$F47,AZ$2*AZ$8<=$G47),"ü",""))) ->  | BB47: =IF(BB$2="","",IF(OR(BB$6<$B47,BB$6>$C47),"",IF(AND(OR(BB$2*BB$7>=$D47,BB$2*BC$7>=$D47),OR(BB$2*BB$7<=$E47,BB$2*BC$7<=$E47),BB$2*BB$8>=$F47,BB$2*BB$8<=$G47),"ü",""))) ->  | BJ47: =IF(BJ$2="","",IF(OR(BJ$6<$B47,BJ$6>$C47),"",IF(AND(OR(BJ$2*BJ$7>=$D47,BJ$2*BK$7>=$D47),OR(BJ$2*BJ$7<=$E47,BJ$2*BK$7<=$E47),BJ$2*BJ$8>=$F47,BJ$2*BJ$8<=$G47),"ü",""))) ->  | BP47: N/A | BQ47: N/A | BR47: N/A
A48: Powerbank700.L | B48: 700 | C48: 700 | D48: 25 | E48: 42 | F48: 17.5 | G48: 29.2 | AF48: ü | AZ48: =IF(AZ$2="","",IF(OR(AZ$6<$B48,AZ$6>$C48),"",IF(AND(OR(AZ$2*AZ$7>=$D48,AZ$2*BA$7>=$D48),OR(AZ$2*AZ$7<=$E48,AZ$2*BA$7<=$E48),AZ$2*AZ$8>=$F48,AZ$2*AZ$8<=$G48),"ü",""))) ->  | BB48: =IF(BB$2="","",IF(OR(BB$6<$B48,BB$6>$C48),"",IF(AND(OR(BB$2*BB$7>=$D48,BB$2*BC$7>=$D48),OR(BB$2*BB$7<=$E48,BB$2*BC$7<=$E48),BB$2*BB$8>=$F48,BB$2*BB$8<=$G48),"ü",""))) ->  | BJ48: =IF(BJ$2="","",IF(OR(BJ$6<$B48,BJ$6>$C48),"",IF(AND(OR(BJ$2*BJ$7>=$D48,BJ$2*BK$7>=$D48),OR(BJ$2*BJ$7<=$E48,BJ$2*BK$7<=$E48),BJ$2*BJ$8>=$F48,BJ$2*BJ$8<=$G48),"ü",""))) ->  | BP48: N/A | BQ48: N/A | BR48: N/A
A49: Powerbank700.XL | B49: 700 | C49: 700 | D49: 43 | E49: 70 | F49: 30 | G49: =49 -> 49 | N49: ü | R49: ü | AZ49: =IF(AZ$2="","",IF(OR(AZ$6<$B49,AZ$6>$C49),"",IF(AND(OR(AZ$2*AZ$7>=$D49,AZ$2*BA$7>=$D49),OR(AZ$2*AZ$7<=$E49,AZ$2*BA$7<=$E49),AZ$2*AZ$8>=$F49,AZ$2*AZ$8<=$G49),"ü",""))) ->  | BB49: =IF(BB$2="","",IF(OR(BB$6<$B49,BB$6>$C49),"",IF(AND(OR(BB$2*BB$7>=$D49,BB$2*BC$7>=$D49),OR(BB$2*BB$7<=$E49,BB$2*BC$7<=$E49),BB$2*BB$8>=$F49,BB$2*BB$8<=$G49),"ü",""))) -> ü | BJ49: =IF(BJ$2="","",IF(OR(BJ$6<$B49,BJ$6>$C49),"",IF(AND(OR(BJ$2*BJ$7>=$D49,BJ$2*BK$7>=$D49),OR(BJ$2*BJ$7<=$E49,BJ$2*BK$7<=$E49),BJ$2*BJ$8>=$F49,BJ$2*BJ$8<=$G49),"ü",""))) -> ü | BP49: N/A | BQ49: N/A | BR49: N/A
A50: Constant VOLTAGE
A51: PowerHub.60 | B51: 2500 | C51: 2500 | D51: 24 | E51: 24 | F51: 9 | G51: 60 | H51: N/A | J51: N/A | L51: N/A | N51: N/A | P51: N/A | R51: N/A | T51: N/A | V51: N/A | X51: N/A | Z51: N/A | AB51: N/A | AD51: N/A | AF51: N/A | AH51: N/A | AJ51: N/A | AL51: N/A | AN51: N/A | AP51: N/A | AR51: N/A | AT51: N/A | AV51: N/A | AX51: N/A | AZ51: N/A | BB51: N/A | BD51: N/A | BF51: N/A | BH51: N/A | BJ51: N/A | BL51: N/A | BN51: N/A | BP51: =IF(BP$2="","",IF(AND($D51=$E51,$E51=BP$7,BP$2*BP$8>=$F51,BP$2*BP$8<=$G51),"ü","")) -> ü
A52: PowerHub.60.DALI | B52: 2500 | C52: 2500 | D52: 24 | E52: 24 | F52: 9 | G52: 60 | H52: N/A | J52: N/A | L52: N/A | N52: N/A | P52: N/A | R52: N/A | T52: N/A | V52: N/A | X52: N/A | Z52: N/A | AB52: N/A | AD52: N/A | AF52: N/A | AH52: N/A | AJ52: N/A | AL52: N/A | AN52: N/A | AP52: N/A | AR52: N/A | AT52: N/A | AV52: N/A | AX52: N/A | AZ52: N/A | BB52: N/A | BD52: N/A | BF52: N/A | BH52: N/A | BJ52: N/A | BL52: N/A | BN52: N/A | BP52: ü
A53: PowerHub.100 | B53: 6250 | C53: 6250 | D53: 24 | E53: 24 | F53: 9 | G53: 100 | H53: N/A | J53: N/A | L53: N/A | N53: N/A | P53: N/A | R53: N/A | T53: N/A | V53: N/A | X53: N/A | Z53: N/A | AB53: N/A | AD53: N/A | AF53: N/A | AH53: N/A | AJ53: N/A | AL53: N/A | AN53: N/A | AP53: N/A | AR53: N/A | AT53: N/A | AV53: N/A | AX53: N/A | AZ53: N/A | BB53: N/A | BD53: N/A | BF53: N/A | BH53: N/A | BJ53: N/A | BL53: N/A | BN53: N/A | BP53: ü | BR53: ü
A54: PowerHub.100.DALI | B54: 0 | C54: 4200 | D54: 24 | E54: 24 | F54: 0 | G54: 100 | H54: N/A | J54: N/A | L54: N/A | N54: N/A | P54: N/A | R54: N/A | T54: N/A | V54: N/A | X54: N/A | Z54: N/A | AB54: N/A | AD54: N/A | AF54: N/A | AH54: N/A | AJ54: N/A | AL54: N/A | AN54: N/A | AP54: N/A | AR54: N/A | AT54: N/A | AV54: N/A | AX54: N/A | AZ54: N/A | BB54: N/A | BD54: N/A | BF54: N/A | BH54: N/A | BJ54: N/A | BL54: N/A | BN54: N/A | BP54: ü | BR54: ü
A55: PowerHub.150 | B55: 6250 | C55: 6250 | D55: 24 | E55: 24 | F55: 9 | G55: 150 | H55: N/A | J55: N/A | L55: N/A | N55: N/A | P55: N/A | R55: N/A | T55: N/A | V55: N/A | X55: N/A | Z55: N/A | AB55: N/A | AD55: N/A | AF55: N/A | AH55: N/A | AJ55: N/A | AL55: N/A | AN55: N/A | AP55: N/A | AR55: N/A | AT55: N/A | AV55: N/A | AX55: N/A | AZ55: N/A | BB55: N/A | BD55: N/A | BF55: N/A | BH55: N/A | BJ55: N/A | BL55: N/A | BN55: N/A | BP55: ü | BQ55: ü | BR55: ü
A56: PowerHub.150+ | B56: 6250 | C56: 6250 | D56: 24 | E56: 24 | F56: 9 | G56: 150 | H56: N/A | J56: N/A | L56: N/A | N56: N/A | P56: N/A | R56: N/A | T56: N/A | V56: N/A | X56: N/A | Z56: N/A | AB56: N/A | AD56: N/A | AF56: N/A | AH56: N/A | AJ56: N/A | AL56: N/A | AN56: N/A | AP56: N/A | AR56: N/A | AT56: N/A | AV56: N/A | AX56: N/A | AZ56: N/A | BB56: N/A | BD56: N/A | BF56: N/A | BH56: N/A | BJ56: N/A | BL56: N/A | BN56: N/A | BP56: ü | BQ56: ü | BR56: ü
A57: PowerHub.150.DALI | B57: 0 | C57: 6250 | D57: 24 | E57: 24 | F57: 0 | G57: 150 | H57: N/A | J57: N/A | L57: N/A | N57: N/A | P57: N/A | R57: N/A | T57: N/A | V57: N/A | X57: N/A | Z57: N/A | AB57: N/A | AD57: N/A | AF57: N/A | AH57: N/A | AJ57: N/A | AL57: N/A | AN57: N/A | AP57: N/A | AR57: N/A | AT57: N/A | AV57: N/A | AX57: N/A | AZ57: N/A | BB57: N/A | BD57: N/A | BF57: N/A | BH57: N/A | BJ57: N/A | BL57: N/A | BN57: N/A | BP57: ü | BQ57: ü | BR57: ü
A58: Magtrak DriverTRIAC.150W | B58: 6250 | C58: 6250 | D58: 24 | E58: 24 | F58: 9 | G58: 150 | H58: N/A | J58: N/A | L58: N/A | N58: N/A | P58: N/A | R58: N/A | T58: N/A | V58: N/A | X58: N/A | Z58: N/A | AB58: N/A | AD58: N/A | AF58: N/A | AH58: N/A | AJ58: N/A | AL58: N/A | AN58: N/A | AP58: N/A | AR58: N/A | AT58: N/A | AV58: N/A | AX58: N/A | AZ58: N/A | BB58: N/A | BD58: N/A | BF58: N/A | BH58: N/A | BJ58: N/A | BL58: N/A | BN58: N/A | BP58: ü | BQ58: ü | BR58: ü
